Workbook

Sheet DATOS
B9: Herramienta de ayuda para cumplimentar las solicitudes de subvención acogidas al Decreto 145/2021 de 21 de diciembre, y MODIFICACIÓN POSTERIOR Los datos obtenidos en el uso de esta herramienta tienen carácter meramente informativo, sin que en ningún caso pueda derivarse efecto jurídico vinculante alguno con esta administración.
C11: Introducir o seleccionar datos solamente en las celdas amarillas
B12: DATOS DE ENTRADA | D12: Observaciones
B13: Tipo de instalación para la que solicita la ayuda | D13: Elegir opción
B14: Tipo de solicitante | D14: =IF(C14="","Elegir opción",VLOOKUP(C14,Auxiliar!R32:S56,2,FALSE)) -> Elegir opción
B15: =IF(D15="No aplicable","NO RELLENAR: Dato correspondiente a otro programa de incentivos",IF(C14="Profesional Autónomo","¿La instalación es en una ubicación DISTINTA a su VIVIENDA?","¿Realiza actividad económica?")) -> ¿Realiza actividad económica? | D15: =IF(OR(C14=Auxiliar!R23,C14=Auxiliar!R26),"No aplicable","Elegir opción") -> Elegir opción
B16: =IF(D16="No aplicable","NO RELLENAR: Dato correspondiente a otro programa de incentivos","¿Actúa el solicitante en representación de agrupaciones de personas físicas o jurídicas propietarias de instalaciones del sector servicios u otros sectores productivos?") -> NO RELLENAR: Dato correspondiente a otro programa de incentivos | D16: =IF(OR(D14=Auxiliar!S39,D14=Auxiliar!S44),"Elegir opción","No aplicable") -> No aplicable
B17: =IF(D17="No aplicable","NO RELLENAR: Dato correspondiente a otro programa de incentivos","Grupo de CNAE (2009)") -> Grupo de CNAE (2009) | D17: =IF(C18="No se cumplen las condiciones","Elegir Grupo de CNAE",IF(OR(Auxiliar!W26=456,Auxiliar!V26=456,D14="Sector Institucional"),"No aplicable",IF(AND(Auxiliar!Y26=0,OR(C18=4,C18=5,C18=6)),"CNAE CORRECTO",IF(AND(Auxiliar!Y26=23,OR(C18=2,C18=3)),"CNAE CORRECTO",IF(AND(Auxiliar!Y26=13,OR(C18=1,C18=3,C14="Entidades u organizaciones públicas o privadas, sin ánimo de lucro")),"CNAE CORRECTO","CNAE INCORRECTO"))))) -> Elegir Grupo de CNAE
B18: PROGRAMA DE INCENTIVOS AL QUE ACOGERSE: | C18: =Auxiliar!Z27 -> No se cumplen las condiciones | D18: =IF(AND(OR(C14=Auxiliar!R9,C14=Auxiliar!R27),DATOS!C18=6),"Acreditar viviendas sociales","") -> 
B19: =IF(OR(C18=4,C18=5,C18=6),"¿Recupera IVA?","NO RELLENAR: Dato correspondiente a otro programa de incentivos") -> NO RELLENAR: Dato correspondiente a otro programa de incentivos | D19: =IF(OR(C18=4,C18=5,C18=6),IF(C19="NO","Incluir IVA en los COSTES","No incluir IVA en los COSTES"),"No aplicable") -> No aplicable
B21: =IF(OR(DATOS!C18=1,DATOS!C18=2,DATOS!C18=3),"PROGRAMA DE INCENTIVOS 1-2-3","NO UTILIZAR ESTE APARTADO PARA EL PROGRAMA DE INCENTIVOS SELECCIONADO") -> NO UTILIZAR ESTE APARTADO PARA EL PROGRAMA DE INCENTIVOS SELECCIONADO | D21: =IF(OR(C18=4,C18=5,C18=6,C18="No se cumplen las condiciones"),"Notas","Observaciones") -> Notas
B22: =IF(OR(C18=4,C18=5,C18=6,C18="No se cumplen las condiciones"),"NO RELLENAR: Dato correspondiente a otro programa de incentivos","Localidad") -> NO RELLENAR: Dato correspondiente a otro programa de incentivos | D22: =IF(OR(C18=3,C18=4,C18=5,C18=6,C18="No se cumplen las condiciones"),"",'PI 1-2-3'!E6&" aplica ayuda adicional por Población") -> 
B23: =IF(OR(C18=4,C18=5,C18=6,C18="No se cumplen las condiciones"),"NO RELLENAR: Dato correspondiente a otro programa de incentivos","Efectivos de la empresa (nº de personas)") -> NO RELLENAR: Dato correspondiente a otro programa de incentivos | D23: =IF(OR(C18=4,C18=5,C18=6,C18="No se cumplen las condiciones"),"","Tipo de empresa") -> 
B24: =IF(OR(C18=4,C18=5,C18=6,C18="No se cumplen las condiciones"),"NO RELLENAR: Dato correspondiente a otro programa de incentivos","Volumen de negocio (€)") -> NO RELLENAR: Dato correspondiente a otro programa de incentivos | D24: =IF(OR(C18=4,C18=5,C18=6,C18="No se cumplen las condiciones"),"",'PI 1-2-3'!E7) -> 
B25: =IF(OR(C18=4,C18=5,C18=6,C18="No se cumplen las condiciones"),"NO RELLENAR: Dato correspondiente a otro programa de incentivos","Balance general (€)") -> NO RELLENAR: Dato correspondiente a otro programa de incentivos
B26: =IF(OR(C18=3,C18=4,C18=5,C18=6,C18="No se cumplen las condiciones"),"NO RELLENAR: Dato correspondiente a otro programa de incentivos","¿Se retira cubierta de amianto?") -> NO RELLENAR: Dato correspondiente a otro programa de incentivos
B27: =IF(OR(C18=3,C18=4,C18=5,C18=6,C18="No se cumplen las condiciones"),"NO RELLENAR: Dato correspondiente a otro programa de incentivos","¿Se incluye marquesina?") -> NO RELLENAR: Dato correspondiente a otro programa de incentivos
B28: =IF(OR(C18=4,C18=5,C18=6,C18="No se cumplen las condiciones"),"NO RELLENAR: Dato correspondiente a otro programa de incentivos",IF(C18=3,"Potencia instalación de GENERACIÓN EXISTENTE (kWp)","Potencia instalación de GENERACIÓN (kWp)")) -> NO RELLENAR: Dato correspondiente a otro programa de incentivos | D28: =IF(OR(C18=3,C18=4,C18=5,C18=6,C18="No se cumplen las condiciones"),"","Csufg (€/kWp)") -> 
B29: =IF(OR(C18=3,C18=4,C18=5,C18=6,C18="No se cumplen las condiciones"),"NO RELLENAR: Dato correspondiente a otro programa de incentivos","Coste de la instalación de GENERACIÓN (incl. eliminación de amianto y maquesina, en su caso) (€, sin IVA)") -> NO RELLENAR: Dato correspondiente a otro programa de incentivos | D29: =IF(OR(C18=3,C18=4,C18=5,C18=6,C18="No se cumplen las condiciones"),"No aplicable",'PI 1-2-3'!C13) -> No aplicable
B30: =IF(OR(C18=4,C18=5,C18=6,C18="No se cumplen las condiciones",C13=Auxiliar!Z3,C13=Auxiliar!Z4),"NO RELLENAR: Dato correspondiente a otro programa de incentivos","Capaciad de ALMACENAMIENTO (kWh)") -> NO RELLENAR: Dato correspondiente a otro programa de incentivos | D30: =IF(OR(C18=4,C18=5,C18=6,C18="No se cumplen las condiciones",C13=Auxiliar!Z3,C13=Auxiliar!Z4),"","Csufa (€/kWh)") -> 
B31: =IF(OR(C18=4,C18=5,C18=6,C18="No se cumplen las condiciones",C13=Auxiliar!Z3,C13=Auxiliar!Z4),"NO RELLENAR: Dato correspondiente a otro programa de incentivos","Coste de la instalación de ALMACENAMIENTO (€, sin IVA)") -> NO RELLENAR: Dato correspondiente a otro programa de incentivos | D31: =IF(OR(C18=4,C18=5,C18=6,C18="No se cumplen las condiciones",C13=Auxiliar!Z3,C13=Auxiliar!Z4),"",'PI 1-2-3'!E13) -> 
B32: =IF(OR(C18=4,C18=5,C18=6,C18="No se cumplen las condiciones"),"Dato correspondiente a otro programa de incentivos","CÁLCULO DE LA CUANTÍA DE LA SUBVENCIÓN (Este cálculo es meramente informativo, no suponiendo compromiso por parte de la Administración)") -> Dato correspondiente a otro programa de incentivos
B33: =IF(OR(C18=4,C18=5,C18=6,C18="No se cumplen las condiciones"),"Dato correspondiente a otro programa de incentivos",IF(C18=3,"","Ayuda Total de GENERACIÓN")) -> Dato correspondiente a otro programa de incentivos | C33: =IF(OR(C18=3,C18=4,C18=5,C18=6,C18="No se cumplen las condiciones"),"",'PI 1-2-3'!C16) -> 
B34: =IF(OR(C18=4,C18=5,C18=6,C18="No se cumplen las condiciones"),"Dato correspondiente a otro programa de incentivos",IF(OR(C13=Auxiliar!Z3,C13=Auxiliar!Z4),"","Ayuda Total de ALMACENAMIENTO")) -> Dato correspondiente a otro programa de incentivos | C34: =IF(OR(C18=4,C18=5,C18=6,C18="No se cumplen las condiciones",C13=Auxiliar!Z3,C13=Auxiliar!Z4),"",'PI 1-2-3'!E16) ->  | D34: =IF(OR(C18=4,C18=5,C18=6,C18="No se cumplen las condiciones",C13=Auxiliar!Z3,C13=Auxiliar!Z4),"",'PI 1-2-3'!E10&" cumple ratio baterias") -> 
B35: =IF(OR(C18=4,C18=5,C18=6,C18="No se cumplen las condiciones"),"Dato correspondiente a otro programa de incentivos","AYUDA TOTAL") -> Dato correspondiente a otro programa de incentivos | C35: =IF(OR(C18=4,C18=5,C18=6,C18="No se cumplen las condiciones"),"",'PI 1-2-3'!D17) -> 
B36: =IF(OR(C18=4,C18=5,C18=6,C18="No se cumplen las condiciones"),"Dato correspondiente a otro programa de incentivos","Porcentaje de subvención (%)") -> Dato correspondiente a otro programa de incentivos | C36: =IF(OR(C18=4,C18=5,C18=6,C18="No se cumplen las condiciones"),"",'PI 1-2-3'!E17) -> 
B38: =IF(OR(DATOS!C18=4,DATOS!C18=5),"PROGRAMA DE INCENTIVOS 4-5","NO UTILIZAR ESTE APARTADO PARA EL PROGRAMA DE INCENTIVOS SELECCIONADO") -> NO UTILIZAR ESTE APARTADO PARA EL PROGRAMA DE INCENTIVOS SELECCIONADO | D38: =IF(OR(C18=1,C18=2,C18=3,C18=6,C18="No se cumplen las condiciones"),"Notas","Observaciones") -> Notas
B39: =IF(OR(C18=1,C18=2,C18=3,C18=6,C18="No se cumplen las condiciones"),"NO RELLENAR: Dato correspondiente a otro programa de incentivos","Localidad") -> NO RELLENAR: Dato correspondiente a otro programa de incentivos | D39: =IF(OR(C18=1,C18=2,C18=3,C18=6,C18="No se cumplen las condiciones"),"",'PI 4-5'!E6&" aplica ayuda adicional por Población") -> 
B40: =IF(OR(C18=1,C18=2,C18=3,C18=5,C18=6,C18="No se cumplen las condiciones"),"NO RELLENAR: Dato correspondiente a otro programa de incentivos","¿Sector?") -> NO RELLENAR: Dato correspondiente a otro programa de incentivos
B41: =IF(OR(C18=1,C18=2,C18=3,C18=5,C18=6,C18="No se cumplen las condiciones"),"NO RELLENAR: Dato correspondiente a otro programa de incentivos","¿Autoconsumo colectivo?") -> NO RELLENAR: Dato correspondiente a otro programa de incentivos
B42: =IF(OR(C18=1,C18=2,C18=3,C18=5,C18=6,C18="No se cumplen las condiciones"),"NO RELLENAR: Dato correspondiente a otro programa de incentivos","¿Se retira cubierta de amianto?") -> NO RELLENAR: Dato correspondiente a otro programa de incentivos
B43: =IF(OR(C18=1,C18=2,C18=3,C18=5,C18=6,C18="No se cumplen las condiciones"),"NO RELLENAR: Dato correspondiente a otro programa de incentivos","¿Se incluye marquesina?") -> NO RELLENAR: Dato correspondiente a otro programa de incentivos
B44: =IF(OR(C18=1,C18=2,C18=3,C18=6,C18="No se cumplen las condiciones"),"NO RELLENAR: Dato correspondiente a otro programa de incentivos",IF(C18=5,"Potencia instalación de GENERACIÓN EXISTENTE (kWp)","Potencia instalación de GENERACIÓN(kWp)")) -> NO RELLENAR: Dato correspondiente a otro programa de incentivos | D44: =IF(OR(C18=1,C18=2,C18=3,C18=6,C18="No se cumplen las condiciones",C40="Otro sector (agropecuario, etc)"),"",IF(C18=5,"","Módulo gen. (€/kWp)")) -> 
B45: =IF(OR(C18=1,C18=2,C18=3,C18=5,C18=6,C18="No se cumplen las condiciones"),"NO RELLENAR: Dato correspondiente a otro programa de incentivos","Coste de la instalación de GENERACIÓN (incl. eliminación de amianto y maquesina, en su caso) (€)") -> NO RELLENAR: Dato correspondiente a otro programa de incentivos | D45: =IF(OR(C18=1,C18=2,C18=3,C18=6,C18="No se cumplen las condiciones",C40="Otro sector (agropecuario, etc)"),"",IF(C18=5,"",'PI 4-5'!C14)) -> 
B46: =IF(OR(C18=1,C18=2,C18=3,C18=6,C18="No se cumplen las condiciones"),"NO RELLENAR: Dato correspondiente a otro programa de incentivos",IF(OR(C13=Auxiliar!Z3,C13=Auxiliar!Z4),"NO RELLENAR: Dato no necesario","Capaciad de ALMACENAMIENTO (kWh)")) -> NO RELLENAR: Dato correspondiente a otro programa de incentivos | D46: =IF(OR(C18=1,C18=2,C18=3,C18=6,C18="No se cumplen las condiciones"),"",IF(OR(C13=Auxiliar!Z3,C13=Auxiliar!Z4),"","Módulo alm. (€/kWh)")) -> 
B47: =IF(OR(C18=1,C18=2,C18=3,C18=6,C18="No se cumplen las condiciones"),"NO RELLENAR: Dato correspondiente a otro programa de incentivos",IF(OR(C13=Auxiliar!Z3,C13=Auxiliar!Z4),"NO RELLENAR: Dato no necesario","Coste de la instalación de ALMACENAMIENTO (€)")) -> NO RELLENAR: Dato correspondiente a otro programa de incentivos | D47: =IF(OR(C18=1,C18=2,C18=3,C18=6,C18="No se cumplen las condiciones"),"",IF(OR(C13=Auxiliar!Z3,C13=Auxiliar!Z4),"",'PI 4-5'!E14)) -> 
B48: =IF(OR(C18=1,C18=2,C18=3,C18=5,C18=6,C18="No se cumplen las condiciones"),"NO RELLENAR: Dato correspondiente a otro programa de incentivos","Consumo anual estimado (kWh)") -> NO RELLENAR: Dato correspondiente a otro programa de incentivos | D48: =IF(OR(C18=4,C18=5),IF(C48="",0,IF(C48/C49<0.8,"No cumple la condición",C48/C49)),"") -> 
B49: =IF(OR(C18=1,C18=2,C18=3,C18=5,C18=6,C18="No se cumplen las condiciones"),"NO RELLENAR: Dato correspondiente a otro programa de incentivos","Energía anual generada por la instalación de autoconsumo (kWh)") -> NO RELLENAR: Dato correspondiente a otro programa de incentivos
B50: =IF(OR(C18=1,C18=2,C18=3,C18=6,C18="No se cumplen las condiciones"),"Dato correspondiente a otro programa de incentivos","CÁLCULO DE LA CUANTÍA DE LA SUBVENCIÓN (Este cálculo es meramente informativo, no suponiendo compromiso por parte de la Administración)") -> Dato correspondiente a otro programa de incentivos
B51: =IF(OR(C18=1,C18=2,C18=3,C18=6,C18="No se cumplen las condiciones"),"Dato correspondiente a otro programa de incentivos",IF(C18=5,"","Ayuda Total de GENERACIÓN")) -> Dato correspondiente a otro programa de incentivos | C51: =IF(OR(C18=1,C18=2,C18=3,C18=5,C18=6,C18="No se cumplen las condiciones",D48="No cumple la condición"),"",'PI 4-5'!C15) -> 
B52: =IF(OR(C18=1,C18=2,C18=3,C18=6,C18="No se cumplen las condiciones"),"Dato correspondiente a otro programa de incentivos",IF(OR(C13=Auxiliar!Z3,C13=Auxiliar!Z4),"","Ayuda Total de ALMACENAMIENTO")) -> Dato correspondiente a otro programa de incentivos | C52: =IF(OR(C18=1,C18=2,C18=3,C18=6,C18="No se cumplen las condiciones",C13=Auxiliar!Z3,C13=Auxiliar!Z4,D48="No cumple la condición"),"",'PI 4-5'!E15) ->  | D52: =IF(OR(C18=1,C18=2,C18=3,C18=6,C18="No se cumplen las condiciones",C13=Auxiliar!Z3,C13=Auxiliar!Z4),"",'PI 4-5'!E11&" cumple ratio baterias") -> 
B53: =IF(OR(C18=1,C18=2,C18=3,C18=6,C18="No se cumplen las condiciones"),"Dato correspondiente a otro programa de incentivos","AYUDA TOTAL") -> Dato correspondiente a otro programa de incentivos | C53: =IF(OR(C18=1,C18=2,C18=3,C18=6,C18="No se cumplen las condiciones",D48="No cumple la condición"),"",'PI 4-5'!D16) -> 
B54: =IF(OR(C18=1,C18=2,C18=3,C18=6,C18="No se cumplen las condiciones"),"Dato correspondiente a otro programa de incentivos","Porcentaje de subvención (%)") -> Dato correspondiente a otro programa de incentivos | C54: =IF(OR(C18=1,C18=2,C18=3,C18=6,C18="No se cumplen las condiciones",D48="No cumple la condición"),"",'PI 4-5'!E16) -> 
B56: =IF(OR(DATOS!C18=6),"PROGRAMA DE INCENTIVOS 6","NO UTILIZAR ESTE APARTADO PARA EL PROGRAMA DE INCENTIVOS SELECCIONADO") -> NO UTILIZAR ESTE APARTADO PARA EL PROGRAMA DE INCENTIVOS SELECCIONADO | D56: =IF(OR(C18=1,C18=2,C18=3,C18=4,C18=5,C18="No se cumplen las condiciones"),"Notas","Observaciones") -> Notas
B57: =IF(OR(C18=1,C18=2,C18=3,C18=4,C18=5,C18="No se cumplen las condiciones"),"NO RELLENAR: Dato correspondiente a otro programa de incentivos","¿Sector?") -> NO RELLENAR: Dato correspondiente a otro programa de incentivos
B58: =IF(OR(C18=1,C18=2,C18=3,C18=4,C18=5,C18="No se cumplen las condiciones"),"NO RELLENAR: Dato correspondiente a otro programa de incentivos","Potencia instalación TÉRMICA (kW)") -> NO RELLENAR: Dato correspondiente a otro programa de incentivos | D58: =IF(OR(C18=1,C18=2,C18=3,C18=4,C18=5,C18="No se cumplen las condiciones",C57="Otro sector (agropecuario, etc)"),"","Módulo (€/kW)") -> 
B59: =IF(OR(C18=1,C18=2,C18=3,C18=4,C18=5,C18="No se cumplen las condiciones"),"NO RELLENAR: Dato correspondiente a otro programa de incentivos","Coste de la instalación TÉRMICA (incl. nueva distribución y desmantelamiento, en su caso) (€)") -> NO RELLENAR: Dato correspondiente a otro programa de incentivos | D59: =IF(OR(C18=1,C18=2,C18=3,C18=4,C18=5,C18="No se cumplen las condiciones",C57="Otro sector (agropecuario, etc)"),"",'PI 6'!C10) -> 
B60: =IF(OR(C18=1,C18=2,C18=3,C18=4,C18=5,C18="No se cumplen las condiciones"),"NO RELLENAR: Dato correspondiente a otro programa de incentivos","¿Se realiza Nueva Distribución Interior? En caso afirmativo, seleccionar el uso") -> NO RELLENAR: Dato correspondiente a otro programa de incentivos
B61: =IF(OR(C18=1,C18=2,C18=3,C18=4,C18=5,C18="No se cumplen las condiciones",C13=Auxiliar!Z8,C13=Auxiliar!Z12,C13=Auxiliar!Z13),"NO RELLENAR: Dato correspondiente a otro programa de incentivos","¿Se Desmantela instalación existente?") -> NO RELLENAR: Dato correspondiente a otro programa de incentivos
B62: =IF(OR(C18=1,C18=2,C18=3,C18=4,C18=5,C18="No se cumplen las condiciones"),"NO RELLENAR: Dato correspondiente a otro programa de incentivos","Número de viviendas que utilizarán la instalación") -> NO RELLENAR: Dato correspondiente a otro programa de incentivos
B63: =IF(OR(C18=1,C18=2,C18=3,C18=4,C18=5,C18="No se cumplen las condiciones"),"Dato correspondiente a otro programa de incentivos","CÁLCULO DE LA CUANTÍA DE LA SUBVENCIÓN (Este cálculo es meramente informativo, no suponiendo compromiso por parte de la Administración)") -> Dato correspondiente a otro programa de incentivos
B64: =IF(OR(C18=1,C18=2,C18=3,C18=4,C18=5,C18="No se cumplen las condiciones"),"Dato correspondiente a otro programa de incentivos","SUBVENCIÓN A CONCEDER") -> Dato correspondiente a otro programa de incentivos | C64: =IF(OR(C18=1,C18=2,C18=3,C18=4,C18=5,C18="No se cumplen las condiciones"),"",'PI 6'!D12) ->  | D64: =IF('PI 6'!D12='PI 6'!E8,"Valor de ayuda máximo","") -> 
B65: =IF(OR(C18=1,C18=2,C18=3,C18=4,C18=5,C18="No se cumplen las condiciones"),"Dato correspondiente a otro programa de incentivos","Porcentaje de subvención (%)") -> Dato correspondiente a otro programa de incentivos | C65: =IF(OR(C18=1,C18=2,C18=3,C18=4,C18=5,C18="No se cumplen las condiciones"),"",'PI 6'!E12) -> 

Sheet Listado CNAE-2009
A1: COD_CNAE2009 | B1: CODINTEGR | C1: TITULO_CNAE2009
A2: A | B2: A | C2: Agricultura, ganadería, silvicultura y pesca
A3: 1 | B3: A01 | C3: Agricultura, ganadería, caza y servicios relacionados con las mismas
A4: 11 | B4: A011 | C4: Cultivos no perennes
A5: 111 | B5: A0111 | C5: Cultivo de cereales (excepto arroz), leguminosas y semillas oleaginosas
A6: 112 | B6: A0112 | C6: Cultivo de arroz
A7: 113 | B7: A0113 | C7: Cultivo de hortalizas, raíces y tubérculos
A8: 114 | B8: A0114 | C8: Cultivo de caña de azúcar
A9: 115 | B9: A0115 | C9: Cultivo de tabaco
A10: 116 | B10: A0116 | C10: Cultivo de plantas para fibras textiles
A11: 119 | B11: A0119 | C11: Otros cultivos no perennes
A12: 12 | B12: A012 | C12: Cultivos perennes
A13: 121 | B13: A0121 | C13: Cultivo de la vid
A14: 122 | B14: A0122 | C14: Cultivo de frutos tropicales y subtropicales
A15: 123 | B15: A0123 | C15: Cultivo de cítricos
A16: 124 | B16: A0124 | C16: Cultivo de frutos con hueso y pepitas
A17: 125 | B17: A0125 | C17: Cultivo de otros árboles y arbustos frutales y frutos secos
A18: 126 | B18: A0126 | C18: Cultivo de frutos oleaginosos
A19: 127 | B19: A0127 | C19: Cultivo de plantas para bebidas
A20: 128 | B20: A0128 | C20: Cultivo de especias, plantas aromáticas, medicinales y farmacéuticas
A21: 129 | B21: A0129 | C21: Otros cultivos perennes
A22: 13 | B22: A013 | C22: Propagación de plantas
A23: 130 | B23: A0130 | C23: Propagación de plantas
A24: 14 | B24: A014 | C24: Producción ganadera
A25: 141 | B25: A0141 | C25: Explotación de ganado bovino para la producción de leche
A26: 142 | B26: A0142 | C26: Explotación de otro ganado bovino y búfalos
A27: 143 | B27: A0143 | C27: Explotación de caballos y otros equinos
A28: 144 | B28: A0144 | C28: Explotación de camellos y otros camélidos
A29: 145 | B29: A0145 | C29: Explotación de ganado ovino y caprino
A30: 146 | B30: A0146 | C30: Explotación de ganado porcino
A31: 147 | B31: A0147 | C31: Avicultura
A32: 149 | B32: A0149 | C32: Otras explotaciones de ganado
A33: 15 | B33: A015 | C33: Producción agrícola combinada con la producción ganadera
A34: 150 | B34: A0150 | C34: Producción agrícola combinada con la producción ganadera
A35: 16 | B35: A016 | C35: Actividades de apoyo a la agricultura, a la ganadería y de preparación posterior a la cosecha
A36: 161 | B36: A0161 | C36: Actividades de apoyo a la agricultura
A37: 162 | B37: A0162 | C37: Actividades de apoyo a la ganadería
A38: 163 | B38: A0163 | C38: Actividades de preparación posterior a la cosecha
A39: 164 | B39: A0164 | C39: Tratamiento de semillas para reproducción
A40: 17 | B40: A017 | C40: Caza, captura de animales y servicios relacionados con las mismas
A41: 170 | B41: A0170 | C41: Caza, captura de animales y servicios relacionados con las mismas
A42: 2 | B42: A02 | C42: Silvicultura y explotación forestal
A43: 21 | B43: A021 | C43: Silvicultura y otras actividades forestales
A44: 210 | B44: A0210 | C44: Silvicultura y otras actividades forestales
A45: 22 | B45: A022 | C45: Explotación de la madera
A46: 220 | B46: A0220 | C46: Explotación de la madera
A47: 23 | B47: A023 | C47: Recolección de productos silvestres, excepto madera
A48: 230 | B48: A0230 | C48: Recolección de productos silvestres, excepto madera
A49: 24 | B49: A024 | C49: Servicios de apoyo a la silvicultura
A50: 240 | B50: A0240 | C50: Servicios de apoyo a la silvicultura
A51: 3 | B51: A03 | C51: Pesca y acuicultura
A52: 31 | B52: A031 | C52: Pesca
A53: 311 | B53: A0311 | C53: Pesca marina
A54: 312 | B54: A0312 | C54: Pesca en agua dulce
A55: 32 | B55: A032 | C55: Acuicultura
A56: 321 | B56: A0321 | C56: Acuicultura marina
A57: 322 | B57: A0322 | C57: Acuicultura en agua dulce
A58: B | B58: B | C58: Industrias extractivas
A59: 5 | B59: B05 | C59: Extracción de antracita, hulla y lignito
A60: 51 | B60: B051 | C60: Extracción de antracita y hulla
A61: 510 | B61: B0510 | C61: Extracción de antracita y hulla
A62: 52 | B62: B052 | C62: Extracción de lignito
A63: 520 | B63: B0520 | C63: Extracción de lignito
A64: 6 | B64: B06 | C64: Extracción de crudo de petróleo y gas natural
A65: 61 | B65: B061 | C65: Extracción de crudo de petróleo
A66: 610 | B66: B0610 | C66: Extracción de crudo de petróleo
A67: 62 | B67: B062 | C67: Extracción de gas natural
A68: 620 | B68: B0620 | C68: Extracción de gas natural
A69: 7 | B69: B07 | C69: Extracción de minerales metálicos
A70: 71 | B70: B071 | C70: Extracción de minerales de hierro
A71: 710 | B71: B0710 | C71: Extracción de minerales de hierro
A72: 72 | B72: B072 | C72: Extracción de minerales metálicos no férreos
A73: 721 | B73: B0721 | C73: Extracción de minerales de uranio y torio
A74: 729 | B74: B0729 | C74: Extracción de otros minerales metálicos no férreos
A75: 8 | B75: B08 | C75: Otras industrias extractivas
A76: 81 | B76: B081 | C76: Extracción de piedra, arena y arcilla
A77: 811 | B77: B0811 | C77: Extracción de piedra ornamental y para la construcción, piedra caliza, yeso, creta y pizarra
A78: 812 | B78: B0812 | C78: Extracción de gravas y arenas; extracción de arcilla y caolín
A79: 89 | B79: B089 | C79: Industrias extractivas n.c.o.p.
A80: 891 | B80: B0891 | C80: Extracción de minerales para productos químicos y fertilizantes
A81: 892 | B81: B0892 | C81: Extracción de turba
A82: 893 | B82: B0893 | C82: Extracción de sal
A83: 899 | B83: B0899 | C83: Otras industrias extractivas n.c.o.p.
A84: 9 | B84: B09 | C84: Actividades de apoyo a las industrias extractivas
A85: 91 | B85: B091 | C85: Actividades de apoyo a la extracción de petróleo y gas natural
A86: 910 | B86: B0910 | C86: Actividades de apoyo a la extracción de petróleo y gas natural
A87: 99 | B87: B099 | C87: Actividades de apoyo a otras industrias extractivas
A88: 990 | B88: B0990 | C88: Actividades de apoyo a otras industrias extractivas
A89: C | B89: C | C89: Industria manufacturera
A90: 10 | B90: C10 | C90: Industria de la alimentación
A91: 101 | B91: C101 | C91: Procesado y conservación de carne y elaboración de productos cárnicos
A92: 1011 | B92: C1011 | C92: Procesado y conservación de carne
A93: 1012 | B93: C1012 | C93: Procesado y conservación de volatería
A94: 1013 | B94: C1013 | C94: Elaboración de productos cárnicos y de volatería
A95: 102 | B95: C102 | C95: Procesado y conservación de pescados, crustáceos y moluscos
A96: 1021 | B96: C1021 | C96: Procesado de pescados, crustáceos y moluscos
A97: 1022 | B97: C1022 | C97: Fabricación de conservas de pescado
A98: 103 | B98: C103 | C98: Procesado y conservación de frutas y hortalizas
A99: 1031 | B99: C1031 | C99: Procesado y conservación de patatas
A100: 1032 | B100: C1032 | C100: Elaboración de zumos de frutas y hortalizas
A101: 1039 | B101: C1039 | C101: Otro procesado y conservación de frutas y hortalizas
A102: 104 | B102: C104 | C102: Fabricación de aceites y grasas vegetales y animales
A103: 1042 | B103: C1042 | C103: Fabricación de margarina y grasas comestibles similares
A104: 1043 | B104: C1043 | C104: Fabricación de aceite de oliva
A105: 1044 | B105: C1044 | C105: Fabricación de otros aceites y grasas
A106: 105 | B106: C105 | C106: Fabricación de productos lácteos
A107: 1052 | B107: C1052 | C107: Elaboración de helados
A108: 1053 | B108: C1053 | C108: Fabricación de quesos
A109: 1054 | B109: C1054 | C109: Preparación de leche y otros productos lácteos
A110: 106 | B110: C106 | C110: Fabricación de productos de molinería, almidones y productos amiláceos
A111: 1061 | B111: C1061 | C111: Fabricación de productos de molinería
A112: 1062 | B112: C1062 | C112: Fabricación de almidones y productos amiláceos
A113: 107 | B113: C107 | C113: Fabricación de productos de panadería y pastas alimenticias
A114: 1071 | B114: C1071 | C114: Fabricación de pan y de productos frescos de panadería y pastelería
A115: 1072 | B115: C1072 | C115: Fabricación de galletas y productos de panadería y pastelería de larga duración
A116: 1073 | B116: C1073 | C116: Fabricación de pastas alimenticias, cuscús y productos similares
A117: 108 | B117: C108 | C117: Fabricación de otros productos alimenticios
A118: 1081 | B118: C1081 | C118: Fabricación de azúcar
A119: 1082 | B119: C1082 | C119: Fabricación de cacao, chocolate y productos de confitería
A120: 1083 | B120: C1083 | C120: Elaboración de café, té e infusiones
A121: 1084 | B121: C1084 | C121: Elaboración de especias, salsas y condimentos
A122: 1085 | B122: C1085 | C122: Elaboración de platos y comidas preparados
A123: 1086 | B123: C1086 | C123: Elaboración de preparados alimenticios homogeneizados y alimentos dietéticos
A124: 1089 | B124: C1089 | C124: Elaboración de otros productos alimenticios n.c.o.p.
A125: 109 | B125: C109 | C125: Fabricación de productos para la alimentación animal
A126: 1091 | B126: C1091 | C126: Fabricación de productos para la alimentación de animales de granja
A127: 1092 | B127: C1092 | C127: Fabricación de productos para la alimentación de animales de compañía
A128: 11 | B128: C11 | C128: Fabricación de bebidas
A129: 110 | B129: C110 | C129: Fabricación de bebidas
A130: 1101 | B130: C1101 | C130: Destilación, rectificación y mezcla de bebidas alcohólicas
A131: 1102 | B131: C1102 | C131: Elaboración de vinos
A132: 1103 | B132: C1103 | C132: Elaboración de sidra y otras bebidas fermentadas a partir de frutas
A133: 1104 | B133: C1104 | C133: Elaboración de otras bebidas no destiladas, procedentes de la fermentación
A134: 1105 | B134: C1105 | C134: Fabricación de cerveza
A135: 1106 | B135: C1106 | C135: Fabricación de malta
A136: 1107 | B136: C1107 | C136: Fabricación de bebidas no alcohólicas; producción de aguas minerales y otras aguas embotelladas
A137: 12 | B137: C12 | C137: Industria del tabaco
A138: 120 | B138: C120 | C138: Industria del tabaco
A139: 1200 | B139: C1200 | C139: Industria del tabaco
A140: 13 | B140: C13 | C140: Industria textil
A141: 131 | B141: C131 | C141: Preparación e hilado de fibras textiles
A142: 1310 | B142: C1310 | C142: Preparación e hilado de fibras textiles
A143: 132 | B143: C132 | C143: Fabricación de tejidos textiles
A144: 1320 | B144: C1320 | C144: Fabricación de tejidos textiles
A145: 133 | B145: C133 | C145: Acabado de textiles
A146: 1330 | B146: C1330 | C146: Acabado de textiles
A147: 139 | B147: C139 | C147: Fabricación de otros productos textiles
A148: 1391 | B148: C1391 | C148: Fabricación de tejidos de punto
A149: 1392 | B149: C1392 | C149: Fabricación de artículos confeccionados con textiles, excepto prendas de vestir
A150: 1393 | B150: C1393 | C150: Fabricación de alfombras y moquetas
A151: 1394 | B151: C1394 | C151: Fabricación de cuerdas, cordeles, bramantes y redes
A152: 1395 | B152: C1395 | C152: Fabricación de telas no tejidas y artículos confeccionados con ellas, excepto prendas de vestir
A153: 1396 | B153: C1396 | C153: Fabricación de otros productos textiles de uso técnico e industrial
A154: 1399 | B154: C1399 | C154: Fabricación de otros productos textiles n.c.o.p.
A155: 14 | B155: C14 | C155: Confección de prendas de vestir
A156: 141 | B156: C141 | C156: Confección de prendas de vestir, excepto de peletería
A157: 1411 | B157: C1411 | C157: Confección de prendas de vestir de cuero
A158: 1412 | B158: C1412 | C158: Confección de ropa de trabajo
A159: 1413 | B159: C1413 | C159: Confección de otras prendas de vestir exteriores
A160: 1414 | B160: C1414 | C160: Confección de ropa interior
A161: 1419 | B161: C1419 | C161: Confección de otras prendas de vestir y accesorios
A162: 142 | B162: C142 | C162: Fabricación de artículos de peletería
A163: 1420 | B163: C1420 | C163: Fabricación de artículos de peletería
A164: 143 | B164: C143 | C164: Confección de prendas de vestir de punto
A165: 1431 | B165: C1431 | C165: Confección de calcetería
A166: 1439 | B166: C1439 | C166: Confección de otras prendas de vestir de punto
A167: 15 | B167: C15 | C167: Industria del cuero y del calzado
A168: 151 | B168: C151 | C168: Preparación, curtido y acabado del cuero; fabricación de artículos de marroquinería, viaje y de guarnicionería y talabartería; preparación y teñido de pieles
A169: 1511 | B169: C1511 | C169: Preparación, curtido y acabado del cuero; preparación y teñido de pieles
A170: 1512 | B170: C1512 | C170: Fabricación de artículos de marroquinería, viaje y de guarnicionería y talabartería
A171: 152 | B171: C152 | C171: Fabricación de calzado
A172: 1520 | B172: C1520 | C172: Fabricación de calzado
A173: 16 | B173: C16 | C173: Industria de la madera y del corcho, excepto muebles; cestería y espartería
A174: 161 | B174: C161 | C174: Aserrado y cepillado de la madera
A175: 1610 | B175: C1610 | C175: Aserrado y cepillado de la madera
A176: 162 | B176: C162 | C176: Fabricación de productos de madera, corcho, cestería y espartería
A177: 1621 | B177: C1621 | C177: Fabricación de chapas y tableros de madera
A178: 1622 | B178: C1622 | C178: Fabricación de suelos de madera ensamblados
A179: 1623 | B179: C1623 | C179: Fabricación de otras estructuras de madera y piezas de carpintería y ebanistería para la construcción
A180: 1624 | B180: C1624 | C180: Fabricación de envases y embalajes de madera
A181: 1629 | B181: C1629 | C181: Fabricación de otros productos de madera; artículos de corcho, cestería y espartería
A182: 17 | B182: C17 | C182: Industria del papel
A183: 171 | B183: C171 | C183: Fabricación de pasta papelera, papel y cartón
A184: 1711 | B184: C1711 | C184: Fabricación de pasta papelera
A185: 1712 | B185: C1712 | C185: Fabricación de papel y cartón
A186: 172 | B186: C172 | C186: Fabricación de artículos de papel y de cartón
A187: 1721 | B187: C1721 | C187: Fabricación de papel y cartón ondulados; fabricación de envases y embalajes de papel y cartón
A188: 1722 | B188: C1722 | C188: Fabricación de artículos de papel y cartón para uso doméstico, sanitario e higiénico
A189: 1723 | B189: C1723 | C189: Fabricación de artículos de papelería
A190: 1724 | B190: C1724 | C190: Fabricación de papeles pintados
A191: 1729 | B191: C1729 | C191: Fabricación de otros artículos de papel y cartón
A192: 18 | B192: C18 | C192: Artes gráficas y reproducción de soportes grabados
A193: 181 | B193: C181 | C193: Artes gráficas y servicios relacionados con las mismas
A194: 1811 | B194: C1811 | C194: Artes gráficas y servicios relacionados con las mismas
A195: 1812 | B195: C1812 | C195: Otras actividades de impresión y artes gráficas
A196: 1813 | B196: C1813 | C196: Servicios de preimpresión y preparación de soportes
A197: 1814 | B197: C1814 | C197: Encuadernación y servicios relacionados con la misma
A198: 182 | B198: C182 | C198: Reproducción de soportes grabados
A199: 1820 | B199: C1820 | C199: Reproducción de soportes grabados
A200: 19 | B200: C19 | C200: Coquerías y refino de petróleo
... 811 more rows

Sheet Auxiliar (hidden)
A1: CP | B1: Municipio | C1: Población 2020 | D1: RETO DEMOGRÁFICO | F1: Situación expediente | J1: DATOS | K1: Distribución | L1: Desmantelamiento | M1: Categoría de empresa | N1: Efectivos | O1: Volumen de negocio | P1: Balance general | R1: CÁLCULO DEL PROGRAMA DE INCENTIVOS | AE1: CHECK LIST | AJ1: COD_CNAE2009 | AK1: CODINTEGR | AL1: TITULO_CNAE2009
A2: 6001 | B2: Acedera | C2: 826 | D2: RETO < 5.000 | F2: Anulado | J2: SI | K2: NO | L2: NO | M2: Grande | N2: >250 | O2: >50.000.000 € | P2: >43.000.000 € | R2: Lista Beneficiarios | S2: Posible pograma | T2: ¿Realiza actividad económica? | U2: Posible pograma | V2: ¿En representación de otros? | W2: Posible pograma | X2: Lista CNAE | Y2: Posible programa | Z2: Tipo de instalación | AA2: Posible programa | AB2: SUMA | AF2: Presupuesto l) <4%, 3.000€ | AJ2: A | AK2: A | AL2: Agricultura, ganadería, silvicultura y pesca
A3: 6002 | B3: Aceuchal | C3: >5.000 | D3: >5.000 | F3: C-Solicitud | J3: NO | K3: Suelo Radiante | L3: Solar | M3: Mediana | N3: 250 | O3: 50,000,000 € | P3: 43,000,000 € | R3: Empresa de servicios energéticos | S3: 123 | T3: SI | U3: 123 | V3: SI | W3: 123456 | X3: Dato no necesario | Y3: 0 | Z3: Fotovoltaica sin almacenamiento | AA3: 124 | AB3: =S3+U3+Y10+AA3 -> 383 | AC3: 1 | AF3: Presupuesto l)+m)+n) <7%, 7.000€ | AJ3: 1 | AK3: A01 | AL3: Agricultura, ganadería, caza y servicios relacionados con las mismas
A4: 6003 | B4: Ahillones | C4: 863 | D4: RETO < 5.000 | F4: C-Subsanación | K4: Radiadores | L4: Biomasa | M4: Pequeña | N4: 50 | O4: 10,000,000 € | P4: 10,000,000 € | R4: Proveedor de servicios energéticos | S4: 123 | T4: NO | U4: 456 | V4: NO | W4: 23456 | X4: A01 (excepto A17) | Y4: 23 | Z4: Eólica sin almacenamiento | AA4: 124 | AB4: =S9+U3+Y10+AA3 -> 123717 | AC4: 1 | AF4: RESIDUOS | AJ4: 11 | AK4: A011 | AL4: Cultivos no perennes
A5: 6004 | B5: Alange | C5: 1,856 | D5: RETO < 5.000 | F5: C-Completo | K5: Sector | R5: Empresa explotadora/arrendataria/concesionaria | S5: 123 | V5: SOLO PARA: -Administración -Sector Industrial | X5: B | Y5: 23 | Z5: Fotovoltaica con almacenamiento | AA5: 124 | AB5: =S10+U3+W3+Y10+AA3 -> 247172 | AC5: 1 | AF5: GASTOS NO SUBVENCIONABLES (Art. 7) | AJ5: 111 | AK5: A0111 | AL5: Cultivo de cereales (excepto arroz), leguminosas y semillas oleaginosas
A6: 6005 | B6: La Albuera | C6: 2,035 | D6: RETO < 5.000 | F6: C-Prop. Prov. Concesión | K6: Sector Residencial | R6: Gestor de polígono industriales | S6: 123 | X6: C | Y6: 23 | Z6: Eólica con almacenamiento | AA6: 124 | AB6: =S24+U3+Y10+AA3 -> 12605 | AC6: 1 | AF6: Documentación general | AJ6: 112 | AK6: A0112 | AL6: Cultivo de arroz
A7: 6006 | B7: Alburquerque | C7: >5.000 | D7: >5.000 | F7: C-Prop. Prov. Denegación | K7: Administraciones públicas | R7: Agrupación personas físicas | S7: 123 | X7: D | Y7: 23 | Z7: Incorporación de almacenamiento | AA7: 35 | AB7: =S22+U3+Y10+AA3 -> 123718 | AC7: 1 | AF7: Escritura de apoderamiento. | AJ7: 113 | AK7: A0113 | AL7: Cultivo de hortalizas, raíces y tubérculos
A8: 6007 | B8: Alconchel | C8: 1,659 | D8: RETO < 5.000 | F8: C-Prop. Def. Concesión | K8: Tercer sector (ONG) | R8: Agrupación de empresas | S8: 123 | X8: E | Y8: 23 | Z8: Aerotermia aire-agua (Climatización y/o ACS) | AA8: 6 | AB8: =S3+U3+Y4+AA3 -> 393 | AC8: 2 | AF8: Memoria técnica. | AJ8: 114 | AK8: A0114 | AL8: Cultivo de caña de azúcar
A9: 6008 | B9: Alconera | C9: 743 | D9: RETO < 5.000 | F9: C-Resol. Concesión | K9: Otro sector (agropecuario, etc) | R9: Otros tipos de empresas (personas jurídicas) | S9: 123457 | T9: 6 | X9: F | Y9: 23 | Z9: Solar Térmica | AA9: 6 | AB9: =S9+U3+Y4+AA3 -> 123727 | AC9: 2 | AF9: Presupuesto de la empresa. | AJ9: 115 | AK9: A0115 | AL9: Cultivo de tabaco
A10: 6009 | B10: Aljucén | C10: 250 | D10: RETO < 5.000 | F10: C-Resol. Inadmisión | R10: Municipio o Ayuntamiento | S10: 123456 | X10: G | Y10: 13 | Z10: Biomasa caldera | AA10: 6 | AB10: =S10+U3+W3+Y4+AA3 -> 247182 | AC10: 2 | AF10: DR no afectación medioambiental. | AJ10: 116 | AK10: A0116 | AL10: Cultivo de plantas para fibras textiles
A11: 6010 | B11: Almendral | C11: 1,239 | D11: RETO < 5.000 | F11: C-Resol. Denegación | R11: Entidad local menor | S11: 123456 | X11: H | Y11: 13 | Z11: Biomasa aparatos de calefacción local | AA11: 6 | AB11: =S10+U3+W4+Y4+AA3 -> 147182 | AC11: 2 | AF11: P>100KW - Plan estratégico. | AJ11: 119 | AK11: A0119 | AL11: Otros cultivos no perennes
A12: 6011 | B12: Almendralejo | C12: >5.000 | D12: >5.000 | F12: C-Resol. Desistimiento | R12: Mancomunidad de municipios | S12: 123456 | X12: I | Y12: 13 | Z12: Geotermica de circuito cerrado | AA12: 6 | AB12: =S24+U3+Y4+AA3 -> 12615 | AC12: 2 | AF12: P>100KW - Justificación no causar daño medioambiental. | AJ12: 12 | AK12: A012 | AL12: Cultivos perennes
A13: 6012 | B13: Arroyo de San Serván | C13: 4,080 | D13: RETO < 5.000 | F13: C-Resol. Renuncia | R13: Diputación provincial | S13: 123456 | X13: J | Y13: 13 | Z13: Geotermica o Hidrotérmica de circuito abierto | AA13: 6 | AB13: =S27+U3+Y4+AA3 -> 23728 | AC13: 2 | AF13: P>100KW - Memoria resumen RESIDUOS DE CONSTRUCCIÓN LER. | AJ13: 121 | AK13: A0121 | AL13: Cultivo de la vid
A14: 6013 | B14: Atalaya | C14: 294 | D14: RETO < 5.000 | F14: L- Solicitud | R14: Otras entidades locales | S14: 123456 | X14: K | Y14: 13 | AB14: =S22+U3+Y4+AA3 -> 123728 | AC14: 2 | AF14: DR incl. SOLICITUD - Pago obligaciones por reintegro de subvenciones. | AJ14: 122 | AK14: A0122 | AL14: Cultivo de frutos tropicales y subtropicales
A15: 6014 | B15: Azuaga | C15: >5.000 | D15: >5.000 | F15: L- Subsanación | R15: Organismo público o entidad de derecho público vinculados o dependientes administración Pública Local | S15: 123456 | X15: L | Y15: 13 | AB15: =S27+U3+Y10+AA3 -> 23718 | AC15: 2 | AF15: DR incl. SOLICITUD - No ha recibido ayuda anterior para la misma actuación. | AJ15: 123 | AK15: A0123 | AL15: Cultivo de cítricos
A16: 6015 | B16: Badajoz | C16: >5.000 | D16: >5.000 | F16: L- Acuerdo Inicio Recalif. | R16: Organismo público o entidad de derecho público vinculados o dependientes administración Pública Autonómica | S16: 123456 | X16: M | Y16: 13 | AB16: =S3+U3+Y4+AA7 -> 304 | AC16: 3 | AF16: DR incl. SOLICITUD - Acreditación residencia fiscal. | AJ16: 124 | AK16: A0124 | AL16: Cultivo de frutos con hueso y pepitas
A17: 6016 | B17: Barcarrota | C17: 3,483 | D17: RETO < 5.000 | F17: L- Acuerdo Inicio Incump. | R17: Organismo público o entidad de derecho público vinculados o dependientes administración Pública Estatal | S17: 123456 | X17: N | Y17: 13 | AB17: =S3+U3+Y10+AA7 -> 294 | AC17: 3 | AF17: DR incl. SOLICITUD - Certificados estar al corriente Hacienda Autonómica y SS. | AJ17: 125 | AK17: A0125 | AL17: Cultivo de otros árboles y arbustos frutales y frutos secos
A18: 6017 | B18: Baterno | C18: 266 | D18: RETO < 5.000 | F18: L- Reso. Incumplimiento | R18: Entidad de derecho privado vinculada o dependiente de administración Pública Local | S18: 123456 | X18: O | Y18: 13 | AB18: =S9+U3+Y4+AA7 -> 123638 | AC18: 3 | AF18: DR incl. SOLICITUD - Certificados estar al corriente Hacienda estatal. | AJ18: 126 | AK18: A0126 | AL18: Cultivo de frutos oleaginosos
A19: 6018 | B19: Benquerencia de la Serena | C19: 812 | D19: RETO < 5.000 | F19: L- Certificado Pago | R19: Entidad de derecho privado vinculada o dependiente de administración Pública Autonómica | S19: 123456 | X19: P | Y19: 13 | AB19: =S9+U3+Y10+AA7 -> 123628 | AC19: 3 | AF19: Documentación técnica | AJ19: 127 | AK19: A0127 | AL19: Cultivo de plantas para bebidas
A20: 6019 | B20: Berlanga | C20: 2,331 | D20: RETO < 5.000 | F20: Pagado Intervención | R20: Entidad de derecho privado vinculada o dependiente de administración Pública Estatal | S20: 123456 | X20: Q | Y20: 13 | AB20: =S10+U3+W3+Y4+AA7 -> 247093 | AC20: 3 | AF20: DR sist. almacenamiento no conectado directamente a red. | AJ20: 128 | AK20: A0128 | AL20: Cultivo de especias, plantas aromáticas, medicinales y farmacéuticas
A21: 6020 | B21: Bienvenida | C21: 2,081 | D21: RETO < 5.000 | R21: Universidad de Extremadura | S21: 123456 | X21: R | Y21: 13 | AB21: =S10+U3+W3+Y10+AA7 -> 247083 | AC21: 3 | AF21: DR incl. SOLICITUD - Actividad CNAE. | AJ21: 129 | AK21: A0129 | AL21: Otros cultivos perennes
A22: 6021 | B22: Bodonal de la Sierra | C22: 1,036 | D22: RETO < 5.000 | R22: Profesional Autónomo | S22: 123458 | T22: 6 | X22: S | Y22: 13 | AB22: =S10+U3+W4+Y4+AA7 -> 147093 | AC22: 3 | AF22: IVA SI RECUPERABLE (no incluir en coste subvencionable). | AJ22: 13 | AK22: A013 | AL22: Propagación de plantas
A23: 6022 | B23: Burguillos del Cerro | C23: 3,066 | D23: RETO < 5.000 | R23: Persona física | S23: 456 | AB23: =S10+U3+W4+Y10+AA7 -> 147083 | AC23: 3 | AF23: Documentación para AUTÓNOMOS | AJ23: 130 | AK23: A0130 | AL23: Propagación de plantas
A24: 6023 | B24: Cabeza del Buey | C24: 4,808 | D24: RETO < 5.000 | R24: Comunidad de energías renovables | S24: 12345 | V24: PROGRAMA QUE LE CORRESPONDE | AB24: =S24+U3+Y4+AA7 -> 12526 | AC24: 3 | AF24: DR incl. SOLICITUD - Certificado alta en Censo Empresarios. | AJ24: 14 | AK24: A014 | AL24: Producción ganadera
A25: 6024 | B25: Cabeza la Vaca | C25: 1,298 | D25: RETO < 5.000 | R25: Comunidad ciudadana de energía | S25: 12345 | V25: Tipo solicitante | W25: ¿Act. econ.? | X25: ¿Representación? | Y25: CNAE | Z25: Tipo actuación | AA25: Sumatorio | AB25: =S24+U3+Y10+AA7 -> 12516 | AC25: 3 | AF25: DR incl. SOLICITUD - Declaración ayudas solicitadas o recibidas. | AJ25: 141 | AK25: A0141 | AL25: Explotación de ganado bovino para la producción de leche
A26: 6025 | B26: Calamonte | C26: >5.000 | D26: >5.000 | F26: P1 - P2 - P3 | G26: 1 | H26: 2 | I26: 3 | J26: 4 | K26: 5 | L26: 6 | M26: 7 | N26: 8 | O26: 9 | P26: 10 | R26: Comunidad de propietarios | S26: 456 | V26: =VLOOKUP(DATOS!C14,Auxiliar!R3:S27,2,FALSE) ->  | W26: =IF(AND(V26=123456,DATOS!C16="SI"),123,IF(OR(DATOS!C14=Auxiliar!R23,DATOS!C14=Auxiliar!R26),456,VLOOKUP(DATOS!C15,Auxiliar!T3:U4,2,FALSE))) ->  | X26: =IF(V26=123456,VLOOKUP(DATOS!C16,Auxiliar!V3:W4,2,FALSE),0) ->  | Y26: =IF(DATOS!D14="Sector Institucional",23,IF(OR(V26=456,W26=456),0,VLOOKUP(DATOS!C17,Auxiliar!X3:Y22,2,FALSE))) ->  | Z26: =VLOOKUP(DATOS!C13,Auxiliar!Z3:AA13,2,FALSE) ->  | AA26: =SUM(V26:Z26) ->  | AB26: =S22+U3+Y10+AA7 -> 123629 | AC26: 3 | AF26: Documentación para EMPRESAS | AJ26: 142 | AK26: A0142 | AL26: Explotación de otro ganado bovino y búfalos
A27: 6026 | B27: Calera de León | C27: 930 | D27: RETO < 5.000 | H27: TABLA I | K27: Cuf | L27: Csumg | M27: TABLA II Csumcg | N27: %grande | O27: %mediana | P27: %pequeña | R27: Entidades u organizaciones públicas o privadas, sin ánimo de lucro | S27: 23458 | T27: 6 | V27: PROGRAMA DE INCENTIVOS | Z27: =_xlfn.IFNA(VLOOKUP(AA26,AB3:AC47,2,FALSE),"No se cumplen las condiciones") -> No se cumplen las condiciones | AB27: =S22+U3+Y4+AA7 -> 123639 | AC27: 3 | AF27: DR incl. SOLICITUD - Certificado Agencia Estatal altas/bajas del IAE. | AJ27: 143 | AK27: A0143 | AL27: Explotación de caballos y otros equinos
A28: 6027 | B28: Calzadilla de los Barros | C28: 736 | D28: RETO < 5.000 | F28: FOTOVOLTAICA | G28: F1 | H28: 1,000 | I28: < P ≤ | J28: 5,000 | K28: 120 € | L28: 460 € | M28: 210 € | N28: 15% | O28: 25% | P28: 35% | AB28: =S9+U4+Y3+AA3 -> 124037 | AC28: 4 | AF28: DR incl. SOLICITUD - Escrituras de constitución. | AJ28: 144 | AK28: A0144 | AL28: Explotación de camellos y otros camélidos
A29: 6028 | B29: Campanario | C29: 4,854 | D29: RETO < 5.000 | G29: F2 | H29: 100 | I29: < P ≤ | J29: 1,000 | K29: 0 € | L29: 749 € | M29: 450 € | N29: 15% | O29: 25% | P29: 35% | AB29: =S10+U4+W3+Y3+AA3 -> 247492 | AC29: 4 | AF29: DR incl. SOLICITUD - Tipo de empresa (grande, mediana o pequeña). | AJ29: 145 | AK29: A0145 | AL29: Explotación de ganado ovino y caprino
A30: 6029 | B30: Campillo de Llerena | C30: 1,343 | D30: RETO < 5.000 | G30: F3 | H30: 10 | I30: < P ≤ | J30: 100 | K30: 0 € | L30: 910 € | M30: 660 € | N30: 15% | O30: 25% | P30: 35% | AB30: =S10+U4+W4+Y3+AA3 -> 147492 | AC30: 4 | AF30: Doc. colaboración en agrupación de empresas. | AJ30: 146 | AK30: A0146 | AL30: Explotación de ganado porcino
A31: 6030 | B31: Capilla | C31: 172 | D31: RETO < 5.000 | G31: F4 | I31: P ≤ | J31: 10 | K31: 0 € | L31: 1,188 € | M31: 660 € | N31: 15% | O31: 25% | P31: 45% | AB31: =S22+U4+Y3+AA3 -> 124038 | AC31: 4 | AF31: Documentación para ADMINISTRACIÓN | AJ31: 147 | AK31: A0147 | AL31: Avicultura
A32: 6031 | B32: Carmonita | C32: 524 | D32: RETO < 5.000 | F32: EÓLICA | G32: F5 | H32: 500 | I32: < P ≤ | J32: 5000 | K32: 258 € | L32: 1,070 € | M32: 0 € | N32: 20% | O32: 30% | P32: 40% | R32: Empresa de servicios energéticos | S32: Empresa | AB32: =S23+U4+Y3+AA3 -> 1036 | AC32: 4 | AF32: Certificación por la que se apruebe la participación en el PI correspondiente. | AJ32: 149 | AK32: A0149 | AL32: Otras explotaciones de ganado
A33: 6032 | B33: El Carrascalejo | C33: 85 | D33: RETO < 5.000 | G33: F6 | H33: 20 | I33: < P ≤ | J33: 500 | K33: 129 € | L33: 3,072 € | M33: 0 € | N33: 30% | O33: 40% | P33: 50% | R33: Proveedor de servicios energéticos | S33: Empresa | AB33: =S24+U4+Y3+AA3 -> 12925 | AC33: 4 | AF33: Documentación para SECTOR PÚBLICO INSTITUCIONAL | AJ33: 15 | AK33: A015 | AL33: Producción agrícola combinada con la producción ganadera
A34: 6033 | B34: Casas de Don Pedro | C34: 1,447 | D34: RETO < 5.000 | G34: F7 | I34: P ≤ | J34: 20 | K34: 86 € | L34: 4,723 € | M34: 0 € | N34: 30% | O34: 40% | P34: 50% | R34: Empresa explotadora/arrendataria/concesionaria | S34: Empresa | AB34: =S27+U4+Y3+AA3 -> 24038 | AC34: 4 | AF34: Declaración responsable adscripción a la Administración correspondiente. | AJ34: 150 | AK34: A0150 | AL34: Producción agrícola combinada con la producción ganadera
A35: 6034 | B35: Casas de Reina | C35: 199 | D35: RETO < 5.000 | H35: TABLA III | L35: Csuma | N35: %grande | O35: %mediana | P35: %pequeña | R35: Gestor de polígono industriales | S35: Empresa | AB35: =S9+U4+Y3+AA7 -> 123948 | AC35: 5 | AF35: Documentación para COMUNIDAD DE PROPIETARIOS | AJ35: 16 | AK35: A016 | AL35: Actividades de apoyo a la agricultura, a la ganadería y de preparación posterior a la cosecha
A36: 6035 | B36: Castilblanco | C36: 915 | D36: RETO < 5.000 | F36: ALMACENAMIENTO | G36: F8 | H36: 5,000 | I36: < P | L36: 200 € | N36: 45% | O36: 55% | P36: 65% | R36: Agrupación personas físicas | S36: Empresa | AB36: =S10+U4+W3+Y3+AA7 -> 247403 | AC36: 5 | AF36: Escritura de constitución. | AJ36: 161 | AK36: A0161 | AL36: Actividades de apoyo a la agricultura
A37: 6036 | B37: Castuera | C37: >5.000 | D37: >5.000 | G37: F9 | H37: 100 | I37: < P ≤ | J37: 5,000 | L37: 350 € | N37: 45% | O37: 55% | P37: 65% | R37: Agrupación de empresas | S37: Empresa | AB37: =S10+U4+W4+Y3+AA7 -> 147403 | AC37: 5 | AF37: Acta nombramiento del presidente. | AJ37: 162 | AK37: A0162 | AL37: Actividades de apoyo a la ganadería
A38: 6037 | B38: La Codosera | C38: 2,061 | D38: RETO < 5.000 | G38: F10 | H38: 10 | I38: < P ≤ | J38: 100 | L38: 500 € | N38: 45% | O38: 55% | P38: 65% | R38: Otros tipos de empresas (personas jurídicas) | S38: Empresa | AB38: =S22+U4+Y3+AA7 -> 123949 | AC38: 5 | AF38: Certificado del acuerdo de la junta de la Comunidad de propietarios. | AJ38: 163 | AK38: A0163 | AL38: Actividades de preparación posterior a la cosecha
A39: 6038 | B39: Cordobilla de Lácara | C39: 897 | D39: RETO < 5.000 | G39: F11 | I39: P ≤ | J39: 10 | L39: 700 € | N39: 45% | O39: 55% | P39: 65% | R39: Municipio o Ayuntamiento | S39: Administración | AB39: =S23+U4+Y3+AA7 -> 947 | AC39: 5 | AF39: ANEXO III - Declaración comuneros de poder ser beneficiario. | AJ39: 164 | AK39: A0164 | AL39: Tratamiento de semillas para reproducción
A40: 6039 | B40: La Coronada | C40: 2,165 | D40: RETO < 5.000 | F40: P4 - P5 | G40: 1 | H40: 2 | I40: 3 | J40: 4 | K40: 5 | L40: 6 | M40: 7 | N40: 8 | R40: Entidad local menor | S40: Administración | AB40: =S24+U4+Y3+AA7 -> 12836 | AC40: 5 | AF40: Documentación para COMUNIDAD DE ENERGÍAS RENOVABLES | AJ40: 17 | AK40: A017 | AL40: Caza, captura de animales y servicios relacionados con las mismas
A41: 6040 | B41: Corte de Peleas | C41: 1,191 | D41: RETO < 5.000 | H41: TABLA I: Residencial | K41: M.generación IND | L41: M.generación COLEC. | M41: M.complement. | N41: M.adicional | R41: Mancomunidad de municipios | S41: Administración | AB41: =S27+U4+Y3+AA7 -> 23949 | AC41: 5 | AF41: NIF | AJ41: 170 | AK41: A0170 | AL41: Caza, captura de animales y servicios relacionados con las mismas
A42: 6041 | B42: Cristina | C42: 551 | D42: RETO < 5.000 | F42: FOTOVOLTAICA | G42: F1 | H42: 1,000 | I42: < P ≤ | J42: 5,000 | K42: 300 € | L42: 355 € | M42: 50 € | N42: 30 € | R42: Diputación provincial | S42: Administración | AB42: =S9+U4+Y3+AA8 -> 123919 | AC42: 6 | AF42: Composición, estructura y régimen de funcionamiento | AJ42: 2 | AK42: A02 | AL42: Silvicultura y explotación forestal
A43: 6042 | B43: Cheles | C43: 1,173 | D43: RETO < 5.000 | G43: F2 | H43: 100 | I43: < P ≤ | J43: 1,000 | K43: 350 € | L43: 420 € | M43: 110 € | N43: 35 € | R43: Otras entidades locales | S43: Administración | AB43: =S10+U4+W3+Y3+AA8 -> 247374 | AC43: 6 | AF43: ANEXO IV - DR cumple requisitos de Comunidad EERR. | AJ43: 21 | AK43: A021 | AL43: Silvicultura y otras actividades forestales
A44: 6043 | B44: Don Álvaro | C44: 775 | D44: RETO < 5.000 | G44: F3 | H44: 10 | I44: < P ≤ | J44: 100 | K44: 450 € | L44: 535 € | M44: 160 € | N44: 40 € | R44: Organismo público o entidad de derecho público vinculados o dependientes administración Pública Local | S44: Sector Institucional | AB44: =S10+U4+W4+Y3+AA8 -> 147374 | AC44: 6 | AF44: Certificado de empadronamiento + Mapa sit. instalación <25km | AJ44: 210 | AK44: A0210 | AL44: Silvicultura y otras actividades forestales
A45: 6044 | B45: Don Benito | C45: >5.000 | D45: >5.000 | G45: F4 | I45: P ≤ | J45: 10 | K45: 600 € | L45: 710 € | M45: 160 € | N45: 55 € | R45: Organismo público o entidad de derecho público vinculados o dependientes administración Pública Autonómica | S45: Sector Institucional | AB45: =S22+U4+Y3+AA8 -> 123920 | AC45: 6 | AF45: Copia de los estatutos | AJ45: 22 | AK45: A022 | AL45: Explotación de la madera
A46: 6045 | B46: Entrín Bajo | C46: 552 | D46: RETO < 5.000 | F46: EÓLICA | G46: F5 | H46: 500 | I46: < P ≤ | J46: 5000 | K46: 650 € | L46: 775 € | M46: 0 € | N46: 65 € | R46: Organismo público o entidad de derecho público vinculados o dependientes administración Pública Estatal | S46: Sector Institucional | AB46: =S23+U4+Y3+AA8 -> 918 | AC46: 6 | AJ46: 220 | AK46: A0220 | AL46: Explotación de la madera
A47: 6046 | B47: Esparragalejo | C47: 1,460 | D47: RETO < 5.000 | G47: F6 | H47: 20 | I47: < P ≤ | J47: 500 | K47: 1,950 € | L47: 2,250 € | M47: 0 € | N47: 150 € | R47: Entidad de derecho privado vinculada o dependiente de administración Pública Local | S47: Sector Institucional | AB47: =S27+U4+Y3+AA8 -> 23920 | AC47: 6 | AJ47: 23 | AK47: A023 | AL47: Recolección de productos silvestres, excepto madera
A48: 6047 | B48: Esparragosa de la Serena | C48: 998 | D48: RETO < 5.000 | G48: F7 | I48: P ≤ | J48: 20 | K48: 2,900 € | L48: 3,350 € | M48: 0 € | N48: 225 € | R48: Entidad de derecho privado vinculada o dependiente de administración Pública Autonómica | S48: Sector Institucional | AJ48: 230 | AK48: A0230 | AL48: Recolección de productos silvestres, excepto madera
A49: 6048 | B49: Esparragosa de Lares | C49: 906 | D49: RETO < 5.000 | H49: TABLA II: Pública y 3º sector | K49: M.generación IND | L49: M.generación COLEC. | M49: M.complement. | N49: M.adicional | R49: Entidad de derecho privado vinculada o dependiente de administración Pública Estatal | S49: Sector Institucional | AJ49: 24 | AK49: A024 | AL49: Servicios de apoyo a la silvicultura
A50: 6049 | B50: Feria | C50: 1,115 | D50: RETO < 5.000 | F50: FOTOVOLTAICA | G50: F1 | H50: 1,000 | I50: < P ≤ | J50: 5,000 | K50: 500 € | L50: 555 € | M50: Idem que Tabla I | N50: Idem que Tabla I | R50: Universidad de Extremadura | S50: Sector Institucional | AJ50: 240 | AK50: A0240 | AL50: Servicios de apoyo a la silvicultura
A51: 6050 | B51: Fregenal de la Sierra | C51: 4,836 | D51: RETO < 5.000 | G51: F2 | H51: 100 | I51: < P ≤ | J51: 1,000 | K51: 650 € | L51: 720 € | R51: Profesional Autónomo | S51: Resto | AJ51: 3 | AK51: A03 | AL51: Pesca y acuicultura
A52: 6051 | B52: Fuenlabrada de los Montes | C52: 1,811 | D52: RETO < 5.000 | G52: F3 | H52: 10 | I52: < P ≤ | J52: 100 | K52: 750 € | L52: 835 € | R52: Persona física | S52: Resto | AJ52: 31 | AK52: A031 | AL52: Pesca
A53: 6052 | B53: Fuente de Cantos | C53: 4,687 | D53: RETO < 5.000 | G53: F4 | I53: P ≤ | J53: 10 | K53: 1,000 € | L53: 1,110 € | R53: Comunidad de energías renovables | S53: Resto | AJ53: 311 | AK53: A0311 | AL53: Pesca marina
A54: 6053 | B54: Fuente del Arco | C54: 681 | D54: RETO < 5.000 | F54: EÓLICA | G54: F5 | H54: 500 | I54: < P ≤ | J54: 5000 | K54: 1,150 € | L54: 1,275 € | R54: Comunidad ciudadana de energía | S54: Resto | AJ54: 312 | AK54: A0312 | AL54: Pesca en agua dulce
A55: 6054 | B55: Fuente del Maestre | C55: >5.000 | D55: >5.000 | G55: F6 | H55: 20 | I55: < P ≤ | J55: 500 | K55: 2,700 € | L55: 3,000 € | R55: Comunidad de propietarios | S55: Resto | AJ55: 32 | AK55: A032 | AL55: Acuicultura
A56: 6055 | B56: Fuentes de León | C56: 2,248 | D56: RETO < 5.000 | G56: F7 | I56: P ≤ | J56: 20 | K56: 4,100 € | L56: 4,550 € | R56: Entidades u organizaciones públicas o privadas, sin ánimo de lucro | S56: Resto | AJ56: 321 | AK56: A0321 | AL56: Acuicultura marina
A57: 6056 | B57: Garbayuela | C57: 509 | D57: RETO < 5.000 | H57: TABLA III | L57: M.almacenamiento | N57: M.adicional | AB57: COMPR. | AJ57: 322 | AK57: A0322 | AL57: Acuicultura en agua dulce
A58: 6057 | B58: Garlitos | C58: 565 | D58: RETO < 5.000 | F58: ALMACENAMIENTO | G58: F8 | H58: 5,000 | I58: < P | L58: 140 € | N58: 15 € | AB58: =COUNTIF($AB$3:$AB$47,AB3) -> 1 | AJ58: B | AK58: B | AL58: Industrias extractivas
A59: 6058 | B59: La Garrovilla | C59: 2,357 | D59: RETO < 5.000 | G59: F9 | H59: 100 | I59: < P ≤ | J59: 5,000 | L59: 245 € | N59: 15 € | AB59: 1 | AJ59: 5 | AK59: B05 | AL59: Extracción de antracita, hulla y lignito
A60: 6059 | B60: Granja de Torrehermosa | C60: 1,977 | D60: RETO < 5.000 | G60: F10 | H60: 10 | I60: < P ≤ | J60: 100 | L60: 350 € | N60: 15 € | AB60: 1 | AJ60: 51 | AK60: B051 | AL60: Extracción de antracita y hulla
A61: 6060 | B61: Guareña | C61: >5.000 | D61: >5.000 | G61: F11 | I61: P ≤ | J61: 10 | L61: 490 € | N61: 15 € | AB61: 1 | AJ61: 510 | AK61: B0510 | AL61: Extracción de antracita y hulla
A62: 6061 | B62: La Haba | C62: 1,219 | D62: RETO < 5.000 | F62: P6 | G62: 1 | H62: 2 | I62: 3 | J62: 4 | K62: 5 | L62: 6 | AB62: 1 | AJ62: 52 | AK62: B052 | AL62: Extracción de lignito
A63: 6062 | B63: Helechosa de los Montes | C63: 626 | D63: RETO < 5.000 | H63: TABLA I: Residencial | K63: Módulo | L63: Máximo | AB63: 1 | AJ63: 520 | AK63: B0520 | AL63: Extracción de lignito
A64: 6063 | B64: Herrera del Duque | C64: 3,489 | D64: RETO < 5.000 | F64: Aerotérmica | G64: F1 | K64: 500 € | L64: 3,000 € | AB64: 1 | AJ64: 6 | AK64: B06 | AL64: Extracción de crudo de petróleo y gas natural
A65: 6064 | B65: Higuera de la Serena | C65: 936 | D65: RETO < 5.000 | F65: Solar Térmica (P > 400 kW) | G65: F2 | H65: 400 | I65: < P | K65: 450 € | L65: 550 € | AB65: 1 | AJ65: 61 | AK65: B061 | AL65: Extracción de crudo de petróleo
A66: 6065 | B66: Higuera de Llerena | C66: 337 | D66: RETO < 5.000 | F66: Solar Térmica (100 kW < P ≤ 400 kW) | G66: F3 | H66: 100 | I66: < P ≤ | J66: 400 | K66: 600 € | L66: 780 € | AB66: 1 | AJ66: 610 | AK66: B0610 | AL66: Extracción de crudo de petróleo
A67: 6066 | B67: Higuera de Vargas | C67: 1,925 | D67: RETO < 5.000 | F67: Solar Térmica (50 kW < P ≤ 100 kW) | G67: F4 | H67: 50 | I67: < P ≤ | J67: 100 | K67: 750 € | L67: 900 € | AB67: 1 | AJ67: 62 | AK67: B062 | AL67: Extracción de gas natural
A68: 6067 | B68: Higuera la Real | C68: 2,219 | D68: RETO < 5.000 | F68: Solar Térmica (P ≤ 50 kW) | G68: F5 | I68: P ≤ | J68: 50 | K68: 900 € | L68: 1,800 € | AB68: 1 | AJ68: 620 | AK68: B0620 | AL68: Extracción de gas natural
A69: 6068 | B69: Hinojosa del Valle | C69: 475 | D69: RETO < 5.000 | F69: Biomasa calderas | G69: F6 | K69: 250 € | L69: 2,500 € | AB69: 1 | AJ69: 7 | AK69: B07 | AL69: Extracción de minerales metálicos
A70: 6069 | B70: Hornachos | C70: 3,537 | D70: RETO < 5.000 | F70: Biomasa estufas | G70: F7 | K70: 250 € | L70: 3,000 € | AB70: =COUNTIF($AB$3:$AB$47,AB16) -> 1 | AJ70: 71 | AK70: B071 | AL70: Extracción de minerales de hierro
A71: 6070 | B71: Jerez de los Caballeros | C71: >5.000 | D71: >5.000 | F71: Geotérmicas circuito cerrado | G71: F8 | K71: 2,250 € | L71: 13,500 € | AB71: 1 | AJ71: 710 | AK71: B0710 | AL71: Extracción de minerales de hierro
A72: 6071 | B72: La Lapa | C72: 279 | D72: RETO < 5.000 | F72: Geotermica o Hidrotérmica de circuito abierto | G72: F9 | K72: 1,600 € | L72: 9,000 € | AB72: 1 | AJ72: 72 | AK72: B072 | AL72: Extracción de minerales metálicos no férreos
A73: 6072 | B73: Lobón | C73: 2,756 | D73: RETO < 5.000 | H73: TABLA II: Pública y 3º sector | K73: Módulo | L73: Máximo | AB73: 1 | AJ73: 721 | AK73: B0721 | AL73: Extracción de minerales de uranio y torio
A74: 6073 | B74: Llera | C74: 829 | D74: RETO < 5.000 | F74: Aerotérmica | G74: F1 | K74: 650 € | L74: 3,900 € | AB74: 1 | AJ74: 729 | AK74: B0729 | AL74: Extracción de otros minerales metálicos no férreos
A75: 6074 | B75: Llerena | C75: >5.000 | D75: >5.000 | F75: Solar Térmica (P > 400 kW) | G75: F2 | H75: 400 | I75: < P | K75: 650 € | L75: 820 € | AB75: 1 | AJ75: 8 | AK75: B08 | AL75: Otras industrias extractivas
A76: 6075 | B76: Magacela | C76: 523 | D76: RETO < 5.000 | F76: Solar Térmica (100 kW < P ≤ 400 kW) | G76: F3 | H76: 100 | I76: < P ≤ | J76: 400 | K76: 750 € | L76: 950 € | AB76: 1 | AJ76: 81 | AK76: B081 | AL76: Extracción de piedra, arena y arcilla
A77: 6076 | B77: Maguilla | C77: 957 | D77: RETO < 5.000 | F77: Solar Térmica (50 kW < P ≤ 100 kW) | G77: F4 | H77: 50 | I77: < P ≤ | J77: 100 | K77: 850 € | L77: 1,050 € | AB77: 1 | AJ77: 811 | AK77: B0811 | AL77: Extracción de piedra ornamental y para la construcción, piedra caliza, yeso, creta y pizarra
A78: 6077 | B78: Malcocinado | C78: 356 | D78: RETO < 5.000 | F78: Solar Térmica (P ≤ 50 kW) | G78: F5 | I78: P ≤ | J78: 50 | K78: 950 € | L78: 1,850 € | AB78: 1 | AJ78: 812 | AK78: B0812 | AL78: Extracción de gravas y arenas; extracción de arcilla y caolín
A79: 6078 | B79: Malpartida de la Serena | C79: 543 | D79: RETO < 5.000 | F79: Biomasa calderas | G79: F6 | K79: 350 € | L79: 3,500 € | AB79: 1 | AJ79: 89 | AK79: B089 | AL79: Industrias extractivas n.c.o.p.
A80: 6079 | B80: Manchita | C80: 764 | D80: RETO < 5.000 | F80: Biomasa estufas | G80: F7 | K80: 350 € | L80: 4,200 € | AB80: 1 | AJ80: 891 | AK80: B0891 | AL80: Extracción de minerales para productos químicos y fertilizantes
A81: 6080 | B81: Medellín | C81: 2,275 | D81: RETO < 5.000 | F81: Geotérmicas circuito cerrado | G81: F8 | K81: 2,250 € | L81: 13,500 € | AB81: 1 | AJ81: 892 | AK81: B0892 | AL81: Extracción de turba
A82: 6081 | B82: Medina de las Torres | C82: 1,176 | D82: RETO < 5.000 | F82: Geotermica o Hidrotérmica de circuito abierto | G82: F9 | K82: 1,700 € | L82: 9,550 € | AB82: 1 | AJ82: 893 | AK82: B0893 | AL82: Extracción de sal
A83: 6082 | B83: Mengabril | C83: 498 | D83: RETO < 5.000 | H83: TABLA III | K83: Mcomplementario | L83: Máximo | AB83: 1 | AJ83: 899 | AK83: B0899 | AL83: Otras industrias extractivas n.c.o.p.
A84: 6083 | B84: Mérida | C84: >5.000 | D84: >5.000 | F84: Nueva distribución interior de climatización, circuitos hidráulicos para la incorporación de suelo radiante para proyectos de aerotermia, geotermia, hidrotermia o solar térmica, siempre que estos sistemas funcionen al 100 % con energía renovable. | K84: 600 € | L84: 3,600 € | AB84: 1 | AJ84: 9 | AK84: B09 | AL84: Actividades de apoyo a las industrias extractivas
A85: 6084 | B85: Mirandilla | C85: 1,262 | D85: RETO < 5.000 | F85: Nueva distribución interior de climatización, circuitos hidráulicos para la incorporación de radiadores de baja temperatura o ventiloconvectores para proyectos de aerotermia, geotermia, hidrotermia o solar térmica, siempre que estos sistemas funcionen al 100% con energía renovable. | K85: 550 € | L85: 1,830 € | AB85: 1 | AJ85: 91 | AK85: B091 | AL85: Actividades de apoyo a la extracción de petróleo y gas natural
A86: 6085 | B86: Monesterio | C86: 4,216 | D86: RETO < 5.000 | F86: Desmantelamiento de instalaciones existentes (Solar Térmica) | K86: 350 € | L86: 385 € | AB86: 1 | AJ86: 910 | AK86: B0910 | AL86: Actividades de apoyo a la extracción de petróleo y gas natural
A87: 6086 | B87: Montemolín | C87: 1,361 | D87: RETO < 5.000 | F87: Desmantelamiento de instalaciones existentes (Biomasa) | K87: 40 € | L87: 480 € | AB87: 1 | AJ87: 99 | AK87: B099 | AL87: Actividades de apoyo a otras industrias extractivas
A88: 6087 | B88: Monterrubio de la Serena | C88: 2,326 | D88: RETO < 5.000 | AB88: 1 | AJ88: 990 | AK88: B0990 | AL88: Actividades de apoyo a otras industrias extractivas
A89: 6088 | B89: Montijo | C89: >5.000 | D89: >5.000 | AB89: 1 | AJ89: C | AK89: C | AL89: Industria manufacturera
A90: 6089 | B90: La Morera | C90: 714 | D90: RETO < 5.000 | AB90: 1 | AJ90: 10 | AK90: C10 | AL90: Industria de la alimentación
A91: 6090 | B91: La Nava de Santiago | C91: 926 | D91: RETO < 5.000 | AB91: 1 | AJ91: 101 | AK91: C101 | AL91: Procesado y conservación de carne y elaboración de productos cárnicos
A92: 6091 | B92: Navalvillar de Pela | C92: 4,403 | D92: RETO < 5.000 | AB92: 1 | AJ92: 1011 | AK92: C1011 | AL92: Procesado y conservación de carne
A93: 6092 | B93: Nogales | C93: 658 | D93: RETO < 5.000 | AB93: 1 | AJ93: 1012 | AK93: C1012 | AL93: Procesado y conservación de volatería
A94: 6093 | B94: Oliva de la Frontera | C94: >5.000 | D94: >5.000 | AB94: 1 | AJ94: 1013 | AK94: C1013 | AL94: Elaboración de productos cárnicos y de volatería
A95: 6094 | B95: Oliva de Mérida | C95: 1,725 | D95: RETO < 5.000 | AB95: 1 | AJ95: 102 | AK95: C102 | AL95: Procesado y conservación de pescados, crustáceos y moluscos
A96: 6095 | B96: Olivenza | C96: >5.000 | D96: >5.000 | AB96: 1 | AJ96: 1021 | AK96: C1021 | AL96: Procesado de pescados, crustáceos y moluscos
A97: 6096 | B97: Orellana de la Sierra | C97: 244 | D97: RETO < 5.000 | AB97: 1 | AJ97: 1022 | AK97: C1022 | AL97: Fabricación de conservas de pescado
A98: 6097 | B98: Orellana la Vieja | C98: 2,641 | D98: RETO < 5.000 | AB98: 1 | AJ98: 103 | AK98: C103 | AL98: Procesado y conservación de frutas y hortalizas
A99: 6098 | B99: Palomas | C99: 671 | D99: RETO < 5.000 | AB99: 1 | AJ99: 1031 | AK99: C1031 | AL99: Procesado y conservación de patatas
A100: 6099 | B100: La Parra | C100: 1,327 | D100: RETO < 5.000 | AB100: 1 | AJ100: 1032 | AK100: C1032 | AL100: Elaboración de zumos de frutas y hortalizas
A101: 6100 | B101: Peñalsordo | C101: 896 | D101: RETO < 5.000 | AB101: 1 | AJ101: 1039 | AK101: C1039 | AL101: Otro procesado y conservación de frutas y hortalizas
A102: 6101 | B102: Peraleda del Zaucejo | C102: 507 | D102: RETO < 5.000 | AJ102: 104 | AK102: C104 | AL102: Fabricación de aceites y grasas vegetales y animales
A103: 6102 | B103: Puebla de Alcocer | C103: 1,212 | D103: RETO < 5.000 | AJ103: 1042 | AK103: C1042 | AL103: Fabricación de margarina y grasas comestibles similares
A104: 6103 | B104: Puebla de la Calzada | C104: >5.000 | D104: >5.000 | AJ104: 1043 | AK104: C1043 | AL104: Fabricación de aceite de oliva
A105: 6104 | B105: Puebla de la Reina | C105: 724 | D105: RETO < 5.000 | AJ105: 1044 | AK105: C1044 | AL105: Fabricación de otros aceites y grasas
A106: 6105 | B106: Puebla del Maestre | C106: 670 | D106: RETO < 5.000 | AJ106: 105 | AK106: C105 | AL106: Fabricación de productos lácteos
A107: 6106 | B107: Puebla del Prior | C107: 480 | D107: RETO < 5.000 | AJ107: 1052 | AK107: C1052 | AL107: Elaboración de helados
A108: 6107 | B108: Puebla de Obando | C108: 1,839 | D108: RETO < 5.000 | AJ108: 1053 | AK108: C1053 | AL108: Fabricación de quesos
A109: 6108 | B109: Puebla de Sancho Pérez | C109: 2,676 | D109: RETO < 5.000 | AJ109: 1054 | AK109: C1054 | AL109: Preparación de leche y otros productos lácteos
A110: 6109 | B110: Quintana de la Serena | C110: 4,574 | D110: RETO < 5.000 | AJ110: 106 | AK110: C106 | AL110: Fabricación de productos de molinería, almidones y productos amiláceos
A111: 6110 | B111: Reina | C111: 150 | D111: RETO < 5.000 | AJ111: 1061 | AK111: C1061 | AL111: Fabricación de productos de molinería
A112: 6111 | B112: Rena | C112: 610 | D112: RETO < 5.000 | AJ112: 1062 | AK112: C1062 | AL112: Fabricación de almidones y productos amiláceos
A113: 6112 | B113: Retamal de Llerena | C113: 436 | D113: RETO < 5.000 | AJ113: 107 | AK113: C107 | AL113: Fabricación de productos de panadería y pastas alimenticias
A114: 6113 | B114: Ribera del Fresno | C114: 3,256 | D114: RETO < 5.000 | AJ114: 1071 | AK114: C1071 | AL114: Fabricación de pan y de productos frescos de panadería y pastelería
A115: 6114 | B115: Risco | C115: 132 | D115: RETO < 5.000 | AJ115: 1072 | AK115: C1072 | AL115: Fabricación de galletas y productos de panadería y pastelería de larga duración
A116: 6115 | B116: La Roca de la Sierra | C116: 1,455 | D116: RETO < 5.000 | AJ116: 1073 | AK116: C1073 | AL116: Fabricación de pastas alimenticias, cuscús y productos similares
A117: 6116 | B117: Salvaleón | C117: 1,721 | D117: RETO < 5.000 | AJ117: 108 | AK117: C108 | AL117: Fabricación de otros productos alimenticios
A118: 6117 | B118: Salvatierra de los Barros | C118: 1,607 | D118: RETO < 5.000 | AJ118: 1081 | AK118: C1081 | AL118: Fabricación de azúcar
A119: 6118 | B119: Sancti-Spíritus | C119: 165 | D119: RETO < 5.000 | AJ119: 1082 | AK119: C1082 | AL119: Fabricación de cacao, chocolate y productos de confitería
A120: 6119 | B120: San Pedro de Mérida | C120: 838 | D120: RETO < 5.000 | AJ120: 1083 | AK120: C1083 | AL120: Elaboración de café, té e infusiones
A121: 6120 | B121: Santa Amalia | C121: 3,975 | D121: RETO < 5.000 | AJ121: 1084 | AK121: C1084 | AL121: Elaboración de especias, salsas y condimentos
A122: 6121 | B122: Santa Marta | C122: 4,124 | D122: RETO < 5.000 | AJ122: 1085 | AK122: C1085 | AL122: Elaboración de platos y comidas preparados
A123: 6122 | B123: Santos de Maimona, Los | C123: >5.000 | D123: >5.000 | AJ123: 1086 | AK123: C1086 | AL123: Elaboración de preparados alimenticios homogeneizados y alimentos dietéticos
A124: 6123 | B124: San Vicente de Alcántara | C124: >5.000 | D124: >5.000 | AJ124: 1089 | AK124: C1089 | AL124: Elaboración de otros productos alimenticios n.c.o.p.
A125: 6124 | B125: Segura de León | C125: 1,851 | D125: RETO < 5.000 | AJ125: 109 | AK125: C109 | AL125: Fabricación de productos para la alimentación animal
A126: 6125 | B126: Siruela | C126: 1,861 | D126: RETO < 5.000 | AJ126: 1091 | AK126: C1091 | AL126: Fabricación de productos para la alimentación de animales de granja
A127: 6126 | B127: Solana de los Barros | C127: 2,601 | D127: RETO < 5.000 | AJ127: 1092 | AK127: C1092 | AL127: Fabricación de productos para la alimentación de animales de compañía
A128: 6127 | B128: Talarrubias | C128: 3,406 | D128: RETO < 5.000 | AJ128: 11 | AK128: C11 | AL128: Fabricación de bebidas
A129: 6128 | B129: Talavera la Real | C129: >5.000 | D129: >5.000 | AJ129: 110 | AK129: C110 | AL129: Fabricación de bebidas
A130: 6129 | B130: Táliga | C130: 678 | D130: RETO < 5.000 | AJ130: 1101 | AK130: C1101 | AL130: Destilación, rectificación y mezcla de bebidas alcohólicas
A131: 6130 | B131: Tamurejo | C131: 212 | D131: RETO < 5.000 | AJ131: 1102 | AK131: C1102 | AL131: Elaboración de vinos
A132: 6131 | B132: Torre de Miguel Sesmero | C132: 1,246 | D132: RETO < 5.000 | AJ132: 1103 | AK132: C1103 | AL132: Elaboración de sidra y otras bebidas fermentadas a partir de frutas
A133: 6132 | B133: Torremayor | C133: 949 | D133: RETO < 5.000 | AJ133: 1104 | AK133: C1104 | AL133: Elaboración de otras bebidas no destiladas, procedentes de la fermentación
A134: 6133 | B134: Torremejía | C134: 2,257 | D134: RETO < 5.000 | AJ134: 1105 | AK134: C1105 | AL134: Fabricación de cerveza
A135: 6134 | B135: Trasierra | C135: 625 | D135: RETO < 5.000 | AJ135: 1106 | AK135: C1106 | AL135: Fabricación de malta
A136: 6135 | B136: Trujillanos | C136: 1,376 | D136: RETO < 5.000 | AJ136: 1107 | AK136: C1107 | AL136: Fabricación de bebidas no alcohólicas; producción de aguas minerales y otras aguas embotelladas
A137: 6136 | B137: Usagre | C137: 1,751 | D137: RETO < 5.000 | AJ137: 12 | AK137: C12 | AL137: Industria del tabaco
A138: 6137 | B138: Valdecaballeros | C138: 1,065 | D138: RETO < 5.000 | AJ138: 120 | AK138: C120 | AL138: Industria del tabaco
A139: 6138 | B139: Valdetorres | C139: 1,179 | D139: RETO < 5.000 | AJ139: 1200 | AK139: C1200 | AL139: Industria del tabaco
A140: 6139 | B140: Valencia de las Torres | C140: 540 | D140: RETO < 5.000 | AJ140: 13 | AK140: C13 | AL140: Industria textil
A141: 6140 | B141: Valencia del Mombuey | C141: 725 | D141: RETO < 5.000 | AJ141: 131 | AK141: C131 | AL141: Preparación e hilado de fibras textiles
A142: 6141 | B142: Valencia del Ventoso | C142: 1,960 | D142: RETO < 5.000 | AJ142: 1310 | AK142: C1310 | AL142: Preparación e hilado de fibras textiles
A143: 6142 | B143: Valverde de Burguillos | C143: 273 | D143: RETO < 5.000 | AJ143: 132 | AK143: C132 | AL143: Fabricación de tejidos textiles
A144: 6143 | B144: Valverde de Leganés | C144: 4,167 | D144: RETO < 5.000 | AJ144: 1320 | AK144: C1320 | AL144: Fabricación de tejidos textiles
A145: 6144 | B145: Valverde de Llerena | C145: 570 | D145: RETO < 5.000 | AJ145: 133 | AK145: C133 | AL145: Acabado de textiles
A146: 6145 | B146: Valverde de Mérida | C146: 1,047 | D146: RETO < 5.000 | AJ146: 1330 | AK146: C1330 | AL146: Acabado de textiles
A147: 6146 | B147: Valle de la Serena | C147: 1,172 | D147: RETO < 5.000 | AJ147: 139 | AK147: C139 | AL147: Fabricación de otros productos textiles
A148: 6147 | B148: Valle de Matamoros | C148: 363 | D148: RETO < 5.000 | AJ148: 1391 | AK148: C1391 | AL148: Fabricación de tejidos de punto
A149: 6148 | B149: Valle de Santa Ana | C149: 1,143 | D149: RETO < 5.000 | AJ149: 1392 | AK149: C1392 | AL149: Fabricación de artículos confeccionados con textiles, excepto prendas de vestir
A150: 6149 | B150: Villafranca de los Barros | C150: >5.000 | D150: >5.000 | AJ150: 1393 | AK150: C1393 | AL150: Fabricación de alfombras y moquetas
A151: 6150 | B151: Villagarcía de la Torre | C151: 906 | D151: RETO < 5.000 | AJ151: 1394 | AK151: C1394 | AL151: Fabricación de cuerdas, cordeles, bramantes y redes
A152: 6151 | B152: Villagonzalo | C152: 1,234 | D152: RETO < 5.000 | AJ152: 1395 | AK152: C1395 | AL152: Fabricación de telas no tejidas y artículos confeccionados con ellas, excepto prendas de vestir
A153: 6152 | B153: Villalba de los Barros | C153: 1,475 | D153: RETO < 5.000 | AJ153: 1396 | AK153: C1396 | AL153: Fabricación de otros productos textiles de uso técnico e industrial
A154: 6153 | B154: Villanueva de la Serena | C154: >5.000 | D154: >5.000 | AJ154: 1399 | AK154: C1399 | AL154: Fabricación de otros productos textiles n.c.o.p.
A155: 6154 | B155: Villanueva del Fresno | C155: 3,364 | D155: RETO < 5.000 | AJ155: 14 | AK155: C14 | AL155: Confección de prendas de vestir
A156: 6155 | B156: Villar del Rey | C156: 2,106 | D156: RETO < 5.000 | AJ156: 141 | AK156: C141 | AL156: Confección de prendas de vestir, excepto de peletería
A157: 6156 | B157: Villar de Rena | C157: 1,353 | D157: RETO < 5.000 | AJ157: 1411 | AK157: C1411 | AL157: Confección de prendas de vestir de cuero
A158: 6157 | B158: Villarta de los Montes | C158: 423 | D158: RETO < 5.000 | AJ158: 1412 | AK158: C1412 | AL158: Confección de ropa de trabajo
A159: 6158 | B159: Zafra | C159: >5.000 | D159: >5.000 | AJ159: 1413 | AK159: C1413 | AL159: Confección de otras prendas de vestir exteriores
A160: 6159 | B160: Zahínos | C160: 2,774 | D160: RETO < 5.000 | AJ160: 1414 | AK160: C1414 | AL160: Confección de ropa interior
A161: 6160 | B161: Zalamea de la Serena | C161: 3,545 | D161: RETO < 5.000 | AJ161: 1419 | AK161: C1419 | AL161: Confección de otras prendas de vestir y accesorios
A162: 6161 | B162: Zarza-Capilla | C162: 310 | D162: RETO < 5.000 | AJ162: 142 | AK162: C142 | AL162: Fabricación de artículos de peletería
A163: 6162 | B163: La Zarza | C163: 3,402 | D163: RETO < 5.000 | AJ163: 1420 | AK163: C1420 | AL163: Fabricación de artículos de peletería
A164: 6901 | B164: Valdelacalzada | C164: 2,721 | D164: RETO < 5.000 | AJ164: 143 | AK164: C143 | AL164: Confección de prendas de vestir de punto
A165: 6902 | B165: Pueblonuevo del Guadiana | C165: 2,008 | D165: RETO < 5.000 | AJ165: 1431 | AK165: C1431 | AL165: Confección de calcetería
A166: 6903 | B166: Guadiana | C166: 2,492 | D166: RETO < 5.000 | AJ166: 1439 | AK166: C1439 | AL166: Confección de otras prendas de vestir de punto
A167: 10001 | B167: Abadía | C167: 336 | D167: RETO < 5.000 | AJ167: 15 | AK167: C15 | AL167: Industria del cuero y del calzado
A168: 10002 | B168: Abertura | C168: 404 | D168: RETO < 5.000 | AJ168: 151 | AK168: C151 | AL168: Preparación, curtido y acabado del cuero; fabricación de artículos de marroquinería, viaje y de guarnicionería y talabartería; preparación y teñido de pieles
A169: 10003 | B169: Acebo | C169: 557 | D169: RETO < 5.000 | AJ169: 1511 | AK169: C1511 | AL169: Preparación, curtido y acabado del cuero; preparación y teñido de pieles
A170: 10004 | B170: Acehúche | C170: 802 | D170: RETO < 5.000 | AJ170: 1512 | AK170: C1512 | AL170: Fabricación de artículos de marroquinería, viaje y de guarnicionería y talabartería
A171: 10005 | B171: Aceituna | C171: 600 | D171: RETO < 5.000 | AJ171: 152 | AK171: C152 | AL171: Fabricación de calzado
A172: 10006 | B172: Ahigal | C172: 1,381 | D172: RETO < 5.000 | AJ172: 1520 | AK172: C1520 | AL172: Fabricación de calzado
A173: 10007 | B173: Albalá | C173: 669 | D173: RETO < 5.000 | AJ173: 16 | AK173: C16 | AL173: Industria de la madera y del corcho, excepto muebles; cestería y espartería
A174: 10008 | B174: Alcántara | C174: 1,411 | D174: RETO < 5.000 | AJ174: 161 | AK174: C161 | AL174: Aserrado y cepillado de la madera
A175: 10009 | B175: Alcollarín | C175: 282 | D175: RETO < 5.000 | AJ175: 1610 | AK175: C1610 | AL175: Aserrado y cepillado de la madera
A176: 10010 | B176: Alcuéscar | C176: 2,554 | D176: RETO < 5.000 | AJ176: 162 | AK176: C162 | AL176: Fabricación de productos de madera, corcho, cestería y espartería
A177: 10011 | B177: Aldeacentenera | C177: 561 | D177: RETO < 5.000 | AJ177: 1621 | AK177: C1621 | AL177: Fabricación de chapas y tableros de madera
A178: 10012 | B178: Aldea del Cano | C178: 602 | D178: RETO < 5.000 | AJ178: 1622 | AK178: C1622 | AL178: Fabricación de suelos de madera ensamblados
A179: 10013 | B179: La Aldea del Obispo | C179: 298 | D179: RETO < 5.000 | AJ179: 1623 | AK179: C1623 | AL179: Fabricación de otras estructuras de madera y piezas de carpintería y ebanistería para la construcción
A180: 10014 | B180: Aldeanueva de la Vera | C180: 2,042 | D180: RETO < 5.000 | AJ180: 1624 | AK180: C1624 | AL180: Fabricación de envases y embalajes de madera
A181: 10015 | B181: Aldeanueva del Camino | C181: 727 | D181: RETO < 5.000 | AJ181: 1629 | AK181: C1629 | AL181: Fabricación de otros productos de madera; artículos de corcho, cestería y espartería
A182: 10016 | B182: Aldehuela de Jerte | C182: 371 | D182: RETO < 5.000 | AJ182: 17 | AK182: C17 | AL182: Industria del papel
A183: 10017 | B183: Alía | C183: 816 | D183: RETO < 5.000 | AJ183: 171 | AK183: C171 | AL183: Fabricación de pasta papelera, papel y cartón
A184: 10018 | B184: Aliseda | C184: 1,777 | D184: RETO < 5.000 | AJ184: 1711 | AK184: C1711 | AL184: Fabricación de pasta papelera
A185: 10019 | B185: Almaraz | C185: 1,726 | D185: RETO < 5.000 | AJ185: 1712 | AK185: C1712 | AL185: Fabricación de papel y cartón
A186: 10020 | B186: Almoharín | C186: 1,811 | D186: RETO < 5.000 | AJ186: 172 | AK186: C172 | AL186: Fabricación de artículos de papel y de cartón
A187: 10021 | B187: Arroyo de la Luz | C187: >5.000 | D187: >5.000 | AJ187: 1721 | AK187: C1721 | AL187: Fabricación de papel y cartón ondulados; fabricación de envases y embalajes de papel y cartón
A188: 10022 | B188: Arroyomolinos de la Vera | C188: 441 | D188: RETO < 5.000 | AJ188: 1722 | AK188: C1722 | AL188: Fabricación de artículos de papel y cartón para uso doméstico, sanitario e higiénico
A189: 10023 | B189: Arroyomolinos | C189: 828 | D189: RETO < 5.000 | AJ189: 1723 | AK189: C1723 | AL189: Fabricación de artículos de papelería
A190: 10024 | B190: Baños de Montemayor | C190: 751 | D190: RETO < 5.000 | AJ190: 1724 | AK190: C1724 | AL190: Fabricación de papeles pintados
A191: 10025 | B191: Barrado | C191: 387 | D191: RETO < 5.000 | AJ191: 1729 | AK191: C1729 | AL191: Fabricación de otros artículos de papel y cartón
A192: 10026 | B192: Belvís de Monroy | C192: 733 | D192: RETO < 5.000 | AJ192: 18 | AK192: C18 | AL192: Artes gráficas y reproducción de soportes grabados
A193: 10027 | B193: Benquerencia | C193: 80 | D193: RETO < 5.000 | AJ193: 181 | AK193: C181 | AL193: Artes gráficas y servicios relacionados con las mismas
A194: 10028 | B194: Berrocalejo | C194: 97 | D194: RETO < 5.000 | AJ194: 1811 | AK194: C1811 | AL194: Artes gráficas y servicios relacionados con las mismas
A195: 10029 | B195: Berzocana | C195: 414 | D195: RETO < 5.000 | AJ195: 1812 | AK195: C1812 | AL195: Otras actividades de impresión y artes gráficas
A196: 10030 | B196: Bohonal de Ibor | C196: 481 | D196: RETO < 5.000 | AJ196: 1813 | AK196: C1813 | AL196: Servicios de preimpresión y preparación de soportes
A197: 10031 | B197: Botija | C197: 171 | D197: RETO < 5.000 | AJ197: 1814 | AK197: C1814 | AL197: Encuadernación y servicios relacionados con la misma
A198: 10032 | B198: Brozas | C198: 1,804 | D198: RETO < 5.000 | AJ198: 182 | AK198: C182 | AL198: Reproducción de soportes grabados
A199: 10033 | B199: Cabañas del Castillo | C199: 424 | D199: RETO < 5.000 | AJ199: 1820 | AK199: C1820 | AL199: Reproducción de soportes grabados
A200: 10034 | B200: Cabezabellosa | C200: 340 | D200: RETO < 5.000 | AJ200: 19 | AK200: C19 | AL200: Coquerías y refino de petróleo
... 811 more rows

Sheet PI 6 (hidden)
B2: =IF(OR(DATOS!C18=6),"PROGRAMA DE INCENTIVOS 6","NO UTILIZAR ESTA HOJA PARA EL CÁLCULO") -> NO UTILIZAR ESTA HOJA PARA EL CÁLCULO
B3: DATOS DE ENTRADA
B4: Ps: Potencia instalación de TÉRMICA (kW) | C4: =DATOS!C58 -> 0.00 | D4: ¿Sector? | E4: =DATOS!C57 -> 0 | F4: =IF(DATOS!C13=Auxiliar!Z8,"F1",IF(DATOS!C13=Auxiliar!Z10,"F6",IF(DATOS!C13=Auxiliar!Z11,"F7",IF(DATOS!C13=Auxiliar!Z12,"F8",IF(DATOS!C13=Auxiliar!Z13,"F9",IF(AND(DATOS!C13=Auxiliar!Z9,C4>400),"F2",IF(AND(DATOS!C13=Auxiliar!Z9,C4<=400,C4>100),"F3",IF(AND(DATOS!C13=Auxiliar!Z9,C4<=100,C4>50),"F4",IF(AND(DATOS!C13=Auxiliar!Z9,C4<=50),"F5","No aplica"))))))))) -> No aplica
B5: Ceg: Inversión en inst. TÉRMICA+COMPL. (sin IVA) | C5: =DATOS!C59 -> 0.00 € | D5: ¿Se realiza Nueva Distribución Interior? | E5: =DATOS!C60 -> 0 | F5: =IF(OR(DATOS!C13=Auxiliar!Z8,DATOS!C13=Auxiliar!Z9,DATOS!C13=Auxiliar!Z12,DATOS!C13=Auxiliar!Z13),"Aplica","No aplica por tipo de instalación") -> No aplica por tipo de instalación
B6: Ceug: coste elegible unitario GEN. (sin IVA) | C6: =IF(DATOS!C18=6,C5/C4,0) -> 0.00 € | D6: ¿Se Desmantela instalación existente? | E6: =DATOS!C61 -> 0 | F6: =IF(AND(OR(DATOS!C13=Auxiliar!Z9,DATOS!C13=Auxiliar!Z10,DATOS!C13=Auxiliar!Z11),E6="SI"),"Aplica","No aplica por tipo de instalación") -> No aplica por tipo de instalación
B7: Módulo GENERACIÓN (€/kWp) | C7: =IF(E4="Sector Residencial",VLOOKUP(F4,Auxiliar!G64:L72,5,FALSE),VLOOKUP(F4,Auxiliar!G74:L82,5,FALSE)) ->  | D7: Número de viviendas que utilizarán la instalación | E7: =DATOS!C62 -> 0
B8: Módulo COMPLEMENTARIO (€/kWp) | C8: =IF(OR(E5="NO",E5=0),0,IF(AND(E5="Radiadores",F5="SI"),Auxiliar!K85,IF(F5="No aplica por tipo de instalación",0,Auxiliar!K84)))+IF(AND(DATOS!C13=Auxiliar!Z9,E6="SI"),Auxiliar!K86,IF(AND(E6="SI",OR(DATOS!C13=Auxiliar!Z10,DATOS!C13=Auxiliar!Z11)),Auxiliar!K87,0)) -> 0.00 € | D8: Valor de Ayuda máximo GENERACIÓN (€/vivienda) | E8: =IF(E4="Sector Residencial",VLOOKUP(F4,Auxiliar!G64:L72,6,FALSE),VLOOKUP(F4,Auxiliar!G74:L82,6,FALSE)) -> 
B9: Coste subv. unit. máx. TOTAL GEN. (€/kWp) | C9: =C7+C8 ->  | D9: Valor de Ayuda máximo COMPLEMENTARIO (€/vivienda) | E9: =IF(E5="NO",0,IF(AND(E5="Radiadores",F5="SI"),Auxiliar!L85,IF(F5="No aplica por tipo de instalación",0,Auxiliar!L84)))+IF(AND(DATOS!C13=Auxiliar!Z9,E6="SI"),Auxiliar!L86,IF(AND(E6="SI",OR(DATOS!C13=Auxiliar!Z10,DATOS!C13=Auxiliar!Z11)),Auxiliar!L87,0)) -> 0.00 €
B10: Coste subv. unit. FINAL de GENERACIÓN (€/kWp) | C10: =IF(DATOS!C18=6,MIN(C6,C9),0) -> 0.00 €
B11: Ayuda Total en GENERACIÓN | C11: =C10*C4 -> 0.00 € | D11: Valor de Ayuda MÁXIMO (€/vivienda) | E11: =SUM(E8:E9) -> 
B12: AYUDA TOTAL | D12: =IF(E4="Otro sector (agropecuario, etc)","No subvencionable",MIN(C11,E11)) ->  | E12: =IF(E4="Otro sector (agropecuario, etc)","No aplica",D12/C5) -> 

Sheet PI 1-2-3 (hidden)
B2: =IF(OR(DATOS!C18=1,DATOS!C18=2,DATOS!C18=3),"PROGRAMA DE INCENTIVOS 1-2-3","NO UTILIZAR ESTA HOJA PARA EL CÁLCULO") -> NO UTILIZAR ESTA HOJA PARA EL CÁLCULO
B3: DATOS DE GENERACIÓN | D3: DATOS DE ALMACENAMIENTO
B4: Ps: Potencia instalación de GENERACIÓN(kWp) | C4: =IF(DATOS!C18=3,0,IF(DATOS!C28>5000,5000,DATOS!C28)) -> 0.00 | D4: Localidad | E4: =DATOS!C22 -> 0
B5: Ceg: Inversión en GENERACIÓN+COMPL. (sin IVA) | C5: =DATOS!C29 -> 0.00 € | D5: RETO DEMOGRÁFICO | E5: =VLOOKUP(E4,Auxiliar!B2:D389,3,FALSE) -> 
B6: Ceug: coste elegible unitario GEN. (sin IVA) | C6: =IF(DATOS!C18=3,0,C5/C4) ->  | D6: ¿Se aplica la ayuda adicional por Población? | E6: =IF(E5="RETO < 5.000","SI","NO") -> 
B7: Cuf: coste unitario inst. REFERENCIA (Anexo III) | C7: =VLOOKUP(F15,Auxiliar!$G$28:$P$34,5,FALSE) -> 86.00 € | D7: Tipo de empresa | E7: =IF(AND(DATOS!C23<Auxiliar!N4,OR(DATOS!C24<Auxiliar!O4,DATOS!C25<Auxiliar!P4)),"Pequeña",IF(AND(DATOS!C23<Auxiliar!N3,OR(DATOS!C24<Auxiliar!O3,DATOS!C25<Auxiliar!P3)),"Mediana","Grande")) -> Pequeña | F7: =IF(E7="Grande",8,IF(E7="Mediana",9,10)) -> 10
B8: Csug: coste subvencionable unitario GEN. | C8: =IF((C6-C7)<0,0,C6-C7) ->  | D8: Cap: Capaciad de ALMACENAMIENTO (kWh) | E8: =DATOS!C30 -> 0.00
B9: Csumg: coste subv. unit. máx. GENERACIÓN | C9: =VLOOKUP(F15,Auxiliar!$G$28:$P$34,6,FALSE) -> 4,723.00 € | D9: Cea: Inversión en ALMACENAMIENTO (sin IVA) | E9: =DATOS!C31 -> 0.00 €
B10: Csumcg 1: coste unit. máx. COMPL. Amianto | C10: =IF(OR(DATOS!C13=Auxiliar!Z3,DATOS!C13=Auxiliar!Z5),IF(DATOS!C26="SI",VLOOKUP(F15,Auxiliar!$G$28:$P$34,7,FALSE),0),0) -> 0.00 € | D10: ¿Se cumple el ratio ALMACENAMIENTO/GENERACIÓN? | E10: =IF(E8/DATOS!C28>5,"NO","SI") -> 
B11: Csumcg 2: coste unit. máx. COMPL. Marquesina | C11: =IF(OR(DATOS!C13=Auxiliar!Z3,DATOS!C13=Auxiliar!Z5),IF(DATOS!C27="SI",500,0),0) -> 0.00 € | D11: Csua=Ceua: coste subvencionable unitario ALM. | E11: =IF(E12=0,0,E9/E8) -> 
B12: Csumtg: coste subv. unit. máx. TOTAL GEN. | C12: =SUM(C9:C11) -> 4,723.00 € | D12: Csumta: coste subv. unit. máx. ALMACENAMIENTO | E12: =IF(OR(DATOS!C13=Auxiliar!Z3,DATOS!C13=Auxiliar!Z4),0,VLOOKUP(F12,Auxiliar!$G$36:$P$39,6,FALSE)) -> 700.00 € | F12: =IF(E8="","",IF(E8<=10,Auxiliar!G39,IF(AND(E8>10,E8<=100),Auxiliar!G38,IF(AND(E8>100,E8<=5000),Auxiliar!G37,Auxiliar!G36)))) -> F11
B13: Csufg: coste subv. unit. FINAL de GEN. (€/kWp) | C13: =IF(DATOS!C18=3,0,MIN(C8,C12)) ->  | D13: Csufa: coste subv. unit. FINAL de ALM. (€/kWp) | E13: =IF(E10="NO",0,MIN(E11,E12)) -> 
B14: Cstg: coste subvencionable total GEN. (€/kWp) | C14: =C13*C4 ->  | D14: Csta: coste subvencionable total ALM. (€/kWp) | E14: =E13*E8 -> 
B15: Porcentaje de Ayuda en GENERACIÓN | C15: =IF(DATOS!C18=3,0,VLOOKUP(F15,Auxiliar!G28:P34,F7,FALSE)+IF(E5="RETO < 5.000",0.05,0)) ->  | D15: Porcentaje de Ayuda en ALMACENAMIENTO | E15: =IF(E8="",0,VLOOKUP(F12,Auxiliar!G36:P39,F7,FALSE)) -> 65% | F15: =IF(OR(DATOS!C13=Auxiliar!Z3,DATOS!C13=Auxiliar!Z5),IF(C4<=10,Auxiliar!G31,IF(AND(C4>10,C4<=100),Auxiliar!G30,IF(AND(C4>100,C4<=1000),Auxiliar!G29,Auxiliar!G28))),IF(C4<=20,Auxiliar!G34,IF(AND(C4>20,C4<=500),Auxiliar!G33,IF(AND(C4>500,C4<=5000),Auxiliar!G32,Auxiliar!G32)))) -> F7
B16: Ayuda Total en GENERACIÓN | C16: =C14*C15 ->  | D16: Ayuda Total en ALMACENAMIENTO | E16: =E14*E15 -> 
B17: AYUDA TOTAL | D17: =C16+E16 ->  | E17: =D17/(IF(DATOS!C13=Auxiliar!Z7,0,C5)+IF(OR(DATOS!C13=Auxiliar!Z3,DATOS!C13=Auxiliar!Z4),0,E9)) -> 

Sheet PI 4-5 (hidden)
B2: =IF(OR(DATOS!C18=4,DATOS!C18=5),"PROGRAMA DE INCENTIVOS 4-5","NO UTILIZAR ESTA HOJA PARA EL CÁLCULO") -> NO UTILIZAR ESTA HOJA PARA EL CÁLCULO
B3: DATOS DE GENERACIÓN | D3: DATOS DE ALMACENAMIENTO
B4: ¿Sector? | C4: =DATOS!C40 -> 0 | D4: Localidad | E4: =DATOS!C39 -> 0
B5: ¿Autoconsumo colectivo? | C5: =DATOS!C41 -> 0 | D5: RETO DEMOGRÁFICO | E5: =VLOOKUP(E4,Auxiliar!B2:D389,3,FALSE) ->  | F5: =IF(C5="NO",5,6) -> 6
D6: ¿Se aplica la ayuda adicional por Población? | E6: =IF(E5="RETO < 5.000","SI","NO") -> 
B7: Ps: Potencia instalación de GENERACIÓN(kWp) | C7: =IF(DATOS!C18=5,0,IF(DATOS!C44>5000,5000,DATOS!C44)) -> 0 | D7: Cap: Capaciad de ALMACENAMIENTO (kWh) | E7: =DATOS!C46 -> 0.00
B8: Ceg: Inversión en GENERACIÓN+COMPL. (sin IVA) | C8: =DATOS!C45 -> 0.00 € | D8: Cea: Inversión en ALMACENAMIENTO (sin IVA) | E8: =DATOS!C47 -> 0.00 €
B9: Ceug: coste elegible unitario GEN. (sin IVA) | C9: =IF(DATOS!C18=5,0,C8/C7) ->  | D9: Ceua: coste subvencionable unitario ALM. (sin IVA) | E9: =IF(E10=0,0,E8/E7) -> 
B10: Módulo de GENERACIÓN (€/kWp) | C10: =IF(C4="Sector Residencial",VLOOKUP(F14,Auxiliar!$G$42:$N$48,F5,FALSE),VLOOKUP(F14,Auxiliar!$G$50:$N$56,F5,FALSE)) -> 4,550.00 € | D10: Módulo de ALMACENAMIENTO (€/kWp) | E10: =IF(OR(DATOS!C13=Auxiliar!Z3,DATOS!C13=Auxiliar!Z4),0,VLOOKUP(F10,Auxiliar!$G$58:$N$61,6,FALSE)) -> 490.00 € | F10: =IF(E7="","",IF(E7<=10,"F11",IF(AND(E7>10,E7<=100),"F10",IF(AND(E7>100,E7<=5000),"F9","F8")))) -> F11
B11: Módulo complementario (€/kWp) | C11: =IF(DATOS!C42="SI",VLOOKUP(F14,Auxiliar!$G$42:$N$48,7,FALSE),0)+IF(OR(DATOS!C13=Auxiliar!Z3,DATOS!C13=Auxiliar!Z5),IF(DATOS!C43="SI",120,0),0) -> 0.00 € | D11: ¿Se cumple el ratio ALMACENAMIENTO/GENERACIÓN? | E11: =IF(E7/DATOS!C44>5,"NO","SI") -> 
B12: Módulo adicional GENERACIÓN (€/kWp) | C12: =IF(E5="RETO < 5.000",VLOOKUP(F14,Auxiliar!$G$42:$N$48,8,FALSE),0) ->  | D12: Módulo adicional ALMACENAMIENTO (€/kWp) | E12: =IF(E5="RETO < 5.000",15,0) -> 
B13: Coste subv. unit. máx. TOTAL GEN. (€/kWp) | C13: =C10+C11+C12 ->  | D13: Coste subv. unit. máx. TOTAL ALM. (€/kWp) | E13: =E10+E12 -> 
B14: Coste subv. unit. FINAL de GENERACIÓN (€/kWp) | C14: =IF(DATOS!C18=5,0,MIN(C9,C13)) ->  | D14: Coste subv. unit. FINAL de ALMACENAMIENTO (€/kWp) | E14: =IF(E11="NO",0,MIN(E13,E9)) ->  | F14: =IF(OR(DATOS!C13=Auxiliar!Z3,DATOS!C13=Auxiliar!Z5),IF(C7<=10,Auxiliar!G45,IF(AND(C7>10,C7<=100),Auxiliar!G44,IF(AND(C7>100,C7<=1000),Auxiliar!G43,Auxiliar!G42))),IF(C7<=20,Auxiliar!G48,IF(AND(C7>20,C7<=500),Auxiliar!G47,IF(AND(C7>500,C7<=5000),Auxiliar!G46,Auxiliar!G46)))) -> F7
B15: Ayuda Total en GENERACIÓN | C15: =C14*C7 ->  | D15: Ayuda Total en ALMACENAMIENTO | E15: =E14*E7 -> 
B16: AYUDA TOTAL | D16: =IF(C4="Otro sector (agropecuario, etc)","No subvencionable el sector indicado",C15+E15) ->  | E16: =IF(C4="Otro sector (agropecuario, etc)","No aplica",D16/(IF(DATOS!C13=Auxiliar!Z7,0,C8)+IF(OR(DATOS!C13=Auxiliar!Z3,DATOS!C13=Auxiliar!Z4),0,E8))) -> 
